Workbook

Sheet Cover Page
K2: Template version 25.1a (for incinerators) - 27/11/25
K4: Note that there is another version of this template available for co-incinerators
K13: Notes:
K14: This template may require adjustments by individual operators to meet specific reporting requirements as defined in the site Permit(s)
B29: Annual Performance Report 2025
B31: Permit EPR/HP3431HK
B33: Staffordshire Energy Recovery Facility
B37: VEOLIA ES Staffordshire Limited
B39: Year: | C39: 2025
B41: Address: | C41: Enterprise Drive, Four Ashes, Woverhampton, Staffordshire, WV10 7DF
B43: Tel: | C43: 0203 567 6300
B45: Email: | C45: christine.skaramaga@veolia.com
B47: Prepared by: | C47: Christine Skaramaga | F47: Position: | G47: Senior Environmental Engineer
B49: Approved by: | C49: Matt Richardson | F49: Position: | G49: Plant Manager
B51: Version: | C51: 1
B53: Issue Date: | C53: 2026-01-31

Sheet Facility Info
A1: =+'Cover Page'!$B$29 -> Annual Performance Report 2025 | E1: =+'Cover Page'!$B$33 -> Staffordshire Energy Recovery Facility
A3: Plant Description and Design | K3: Notes:
A5: The ERF is operated by Veolia ES Staffordshire Ltd, a wholly owned subsidiary of Veolia. The plant is designed to burn predominantly residual municipal solid waste and has a capacity to process up to 340,000 tonnes annually. The facility has been built to serve Staffordshire County Council, its eight constituent Councils and its other partner authorities. The facility can generate approximately 29MW of electricity from waste. The facility uses 3.2MW and the balance is exported to the national grid. In tangible terms the electricity generated is equivalent to 66,000 homes. Technical details of the plant: - Construcions Industrielles de la Mediterranee (CNIM) - Design - Maximum Permitted Refuse throughput – 355,000 tonnes per annum - Storage capacity 4,500 tonnes - Approximately four and a half days full plant capacity - Number of tipping bays - 5 - Steam output – 64.5 tonnes of steam per hour at 400degC at 60bar - Flue gas treatment - CNIM ammonia injection for the reduction of NOx, dry lime injection for the removal of acid gases, activated carbon injection for removal of metals and dioxins followed by high performance bag filters for removal of particulates, dispersal via two 80 metre high stacks - Maximum energy generating capacity 29MW The ERF is regulated by the Environment Agency and is certified in compliance with: - ISO 9001:2008 - ISO 14001:2004 - ISO 45001:2018 | K5: Include summary of plant design, design capacity, no. of combustion lines, electrical and heat capacity and any other general information that describes the facility, its location and purpose
A20: Summary of Operational Processes and Procedures
A22: All gaseous emissions generated during the combustion process pass through an extensive flue gas cleaning process which starts in the boiler directly above the furnace with injected ammonia to reduce the levels of oxides of nitrogen. After the boiler, super heater and economiser the gases are cooled to approximately 150 degrees Celsius. Activated carbon is added to remove metals and dioxins and lime is added to remove acidic gases such as SO2 and HCl. Most of this reaction occurs in the bag filters where particulates are removed and APCr is formed. There is recirculation of APC where the used lime and carbon is recirculated further to remove chlorinated gases via a recirculation silo. This secondary reactant is recirculated back to the original process via a lab loop. The cleaned gasses are finally released into the atmosphere through the chimney after the bag house. In compliance with the IED and EPR Permit, the flue gasses are continuously monitored using MCertS accredited equipment. In addition to the continuous monitoring, and extractive sampling campaign is undertaken twice a year by an approved service supplier. The organisation used for analysis and monitoring is accredited by the United Kingdom Accreditation Service (UKAS) and the Environment Agency's Monitoring Certification Scheme (MCertS). Through the process there is continuous emissions monitoring of six main pollutants with ELVs using MCertS approved instruments. The pollutants measured in this way comprise: particulate matter (total), total organic carbon, carbon monoxide, sulphur dioxide, hydrogen chloride, oxides of nitrogen and ammonia. Staffordshire ERF has an experienced Veolia management team from other existing plants. The plant has been designed using proven technology and experience and is performing well. The plant supports our company ethos, as we operate 10 facilities in the UK. Reliable environmental controls and a robust management system ensure that compliance with the Industrial Emissions Directive and EPR Permit. Veolia staff are aware of the environmental impacts of their work and exercise a high standard of housekeeping. Training and competency of staff is controlled by the Veolia Business Management System. The Management System covers training, awareness and competence. The company identifies the training requirements of its employees and provides suitable resources to ensure they have the required knowledge, skills and expertise to carry out their duties. | K22: Include summary of key processes and procedures such as (but not limited to); waste reception, control rooms, grate, bed and boiler, energy & heat generation, cooling systems, residue management, emission controls, health and safety systems, maintenance

Sheet Operational Data
A1: =+'Cover Page'!$B$29 -> Annual Performance Report 2025 | E1: =+'Cover Page'!$B$33 -> Staffordshire Energy Recovery Facility
A3: Operational Data
A4: Plant Size: | B4: 340000 | D4: tonnes pa | J4: Notes:
A5: Nominal net thermal input: | C5: MWth | J5: * Export capacity = nominal generation capacity at the generator terminals minus nominal parasitic load. ** CHP and district heating plants only - put N/A if no heat export. *** Combusted tonnage = tonnes delivered in period + (tonnes in bunker at start of period – tonnes in bunker at end of period), or equivalent calculation depending on plant type **** Availability Definition: The availability of a line is to be calculated by the number of hours the line reported Continuously Monitored emission levels to the Regulator through the calendar year divided by the total number of hours in that year. The overall plant availability is calculated as the mean of all lines in the plant. For clarity this includes periods of abnormal operation. Rationale: The primary function of an Energy from Waste facility is the disposal of waste. It follows therefore that the availability of a plant is determined by the period of time a facility spends undertaking this activity. *****NCV of waste: This should be completed for all plants which have a boiler. Calculate using total thermal power produced by boiler/boiler efficiency, or other suitable calculation.
A6: Nominal electrical export capacity*: | B6: 29 | C6: MWe
A7: Nominal heat export capacity**: | C7: MWth
A8: No. of combustion lines: | B8: 2 | C8: No. of steam turbines: | E8: 1
A10: Waste types received | B10: Unit | C10: Q1 | D10: Q2 | E10: Q3 | F10: Q4 | G10: Year Total | H10: %
A11: Household / Local Authority | B11: tonnes | C11: 79784.38 | D11: 58380.37 | E11: 72951.59 | F11: 74479.22 | G11: =SUM(C11:F11) -> 285595.56 | H11: =IF(G11>0,G11/$G$21,"-") -> 0.9425961941
A12: Commercial & Industrial | C12: 0 | D12: 0 | E12: 0 | F12: 0 | G12: =SUM(C12:F12) -> 0 | H12: -
A13: Hazardous | C13: 0 | D13: 0 | E13: 0 | F13: 0 | G13: 0 | H13: -
A14: Clinical | C14: 0 | D14: 0 | E14: 0 | F14: 0 | G14: 0 | H14: -
A15: Waste wood (biomass) | C15: 0 | D15: 0 | E15: 0 | F15: 0 | G15: 0 | H15: -
A16: Refuse Derived Fuel (incl. SRF) - H'hold/LA | C16: 1744.36 | D16: 2207.72 | E16: 2047.76 | F16: 2825.24 | G16: =SUM(C16:F16) -> 8825.08 | H16: 0.02912680723
A17: Refuse Derived Fuel (incl. SRF) - C&I | G17: 0 | H17: -
A18: Other [Please specify] | G18: 0 | H18: -
A19: Other [Please specify] | G19: 0 | H19: -
A20: Other [Please specify] | G20: 0 | H20: -
A21: Total waste received | C21: =SUM(C11:C20) -> 81528.74 | D21: 69155.688 | E21: =SUM(E11:E20) -> 74999.35 | F21: =SUM(F11:F20) -> 77304.46 | G21: 302988.238 | H21: =IF(G21>0,G21/$G$21,"-") -> 1
A22: Rejected Waste | G22: =SUM(C22:F22) -> 0 | H22: =IF(G22>0,G22/$G$21,"-") -> -
A23: Unprocessed waste transferred out | G23: =SUM(C23:F23) -> 0 | H23: -
A24: Total waste combusted *** | C24: 82953.4 | D24: 67927.8 | E24: 76874.2 | F24: 82300.8 | G24: =SUM(C24:F24) -> 310056.2 | H24: 1.023327513
A26: Energy Usage / Export | B26: Unit | C26: Q1 | D26: Q2 | E26: Q3 | F26: Q4 | G26: Year Total | H26: KWh/te | J26: Password for protected cells A password has been set to prevent accidental editing of cells with formulae. If you still need to make an edit for some reason then the password = 1234
A27: Power generated at generator terminals | B27: MWh | C27: 52897 | D27: 36144 | E27: 0 | F27: 0 | G27: =SUM(C27:F27) -> 89041 | H27: =IF(G27>0,G27*1000/$G$24,"-") -> 287.1769699
A28: Power exported to grid and other external user(s) | C28: 47459 | D28: 31800 | E28: 0 | F28: 0 | G28: =SUM(C28:F28) -> 79259 | H28: =IF(G28>0,G28*1000/$G$24,"-") -> 255.6278507
A29: Power imported | C29: 21 | D29: 1138 | E29: 5908 | F29: 5560 | G29: 12627 | H29: =IF(G29>0,G29*1000/$G$24,"-") -> 40.72487504
A30: Indicative parasitic load | B30: % | C30: =IF(C27>0,(C27-C28)/C27,"-") -> 0.1028035616 | D30: =IF(D27>0,(D27-D28)/D27,"-") -> 0.120185923 | E30: - | F30: - | G30: =IF(G27>0,1-G28/(G27+G29),"-") -> 0.2204135028
A31: Thermal Energy Exported ** | G31: =SUM(C31:F31) -> 0 | H31: =IF(G31>0,G31*1000/$G$24,"-") -> -
A32: R1 value (if applicable) | B32: R1 | C32: - | D32: - | E32: - | F32: - | G32: 0.71
A34: Waste Disposal & Recovery | B34: Unit | C34: Q1 | D34: Q2 | E34: Q3 | F34: Q4 | G34: Year Total | H34: % inputs
A35: APC Residues - produced | B35: tonnes | C35: 1831 | D35: 1631 | E35: 1741 | F35: 1834.1 | G35: =SUM(C35:F35) -> 7037.1 | H35: =IF(G35>0,G35/$G$24,"-") -> 0.02269620798
A36: IBA - produced | C36: 14668.7 | D36: 13635.1 | E36: 14766.6 | F36: 14671 | G36: 57741.4 | H36: =IF(G36>0,G36/$G$24,"-") -> 0.1862288192
A37: Metals recycling | C37: 1449.8 | D37: 1291.4 | E37: 1308.6 | F37: 1409.76 | G37: =SUM(C37:F37) -> 5459.56 | H37: 0.01760829166
A38: Interceptor Waste | C38: 0 | D38: 0 | E38: 0 | F38: 94.5 | G38: =SUM(C38:F38) -> 94.5 | H38: 0.0003047834554
A39: Other | C39: 0 | D39: 0 | E39: 0 | F39: 0 | G39: 0 | H39: -
A40: Other | C40: 0 | D40: 0 | E40: 0 | F40: 0 | G40: 0 | H40: -
A42: Raw Material Usage | B42: Unit | C42: Q1 | D42: Q2 | E42: Q3 | F42: Q4 | G42: Year Total | H42: Qty./te
A43: Mains Water | B43: m3 | C43: 7421 | D43: 10058 | E43: 9155 | F43: 11193 | G43: =SUM(C43:F43) -> 37827 | H43: =IF(G43>0,G43/$G$24,"-") -> 0.1220004631
A44: Other Water | B44: ltrs | G44: 0 | H44: =IF(G44>0,G44/$G$24,"-") -> -
A45: Ammonia | B45: kgs | C45: 304800 | D45: 289900 | E45: 311100 | F45: 362800 | G45: 1268600 | H45: 4.091516312
A46: Urea | B46: kgs | G46: =SUM(C46:F46) -> 0 | H46: -
A47: Activated Carbon | B47: kgs | C47: 20100 | D47: 16300 | E47: 19000 | F47: 15300 | G47: 70700 | H47: 0.2280231777
A48: Lime / hydrated lime | B48: kgs | C48: 970600 | D48: 848200 | E48: 911300 | F48: 936100 | G48: 3666200 | H48: 11.82430798
A49: Fuel oil | B49: ltrs | C49: 141942.2 | D49: 176548.6 | E49: 95051.3 | F49: 102640.9 | G49: 516183 | H49: 1.664804639
A50: Gas | B50: m3 | G50: 0 | H50: -
A51: Other | G51: 0 | H51: -
A53: Summary | B53: Line/Unit | C53: Q1 | D53: Q2 | E53: Q3 | F53: Q4 | G53: Year Total | I53: Hrs in year
A54: Availability of waste combustion by line, hrs **** | B54: 1 | C54: 2111 | D54: 1606 | E54: 1952 | F54: 2061 | G54: =SUM(C54:F54) -> 7730 | H54: =+G54/$I$54 -> 0.8824200913 | I54: 8760 | J54: Change this figure to 8784 in a leap year
B55: 2 | C55: 1957.5 | D55: 1771 | E55: 2077.5 | F55: 2113 | G55: 7919 | H55: =+G55/$I$54 -> 0.9039954338
B56: 3 | G56: 0 | H56: 0
B57: 4 | G57: 0 | H57: 0
B58: 5 | G58: =SUM(C58:F58) -> 0 | H58: 0
A59: Hours of turbine operations, hrs | B59: 1 | C59: 2151.8 | D59: 1582.3 | E59: 0 | F59: 0 | G59: 3734.1 | H59: 0.4262671233
A60: Hours of turbine operations, hrs | B60: 2 | G60: 0 | H60: 0
A61: Hours of heat / steam export** | B61: hours | G61: 0 | H61: =IF(B61>0,G60/I54,"n/a") -> 0
A62: Net calorific value of waste***** | B62: MJ/kg
A63: Abnormal operation events | B63: qty. | G63: 0 | H63: =IF(G63>0,"yes","no") -> no
A64: Abnormal operation duration | B64: hours | G64: 0 | H64: =+(G64)/I54 -> 0
A65: Permit Breaches | B65: qty. | G65: 0 | H65: =IF(G65>0,"yes","no") -> no

Sheet Operational Summary
A1: =+'Cover Page'!$B$29 -> Annual Performance Report 2025 | E1: =+'Cover Page'!$B$33 -> Staffordshire Energy Recovery Facility
A3: Summary of Plant Operations and Maintenance during the reporting year | K3: Notes:
A5: Major plant outage and common outage Boiler cleaning & NDT survey Full grate overhaul, all bars removed, cleaned, jigged and replaced Hydraulic lube oil replaced and filters changed Pressure parts replaced with inconel All unit SRVs overhauled and recertified Refractory inspection and major repair program Instrument calibrations ID fan bearings replaced Primary air fan bearings replaced FGT/APC inpsection and service of ash transportation system Baghouse - all cells internally checked and plating work repairs carried out All baghouse screws (4 off) fully replaced L2 4th pass SPG installation preperation works No.1 refuse crane, complete hoist drum and drive assembly replacement Steam turbine major overhaul Generator major overhaul (failure on return to service) STG Control system upgrade Chimney stack new cap sections installed | K5: Include summary of key operational and/or maintenance activity undertaken in the year, such as any major component upgrades and/or replacements
A29: =+'Cover Page'!C39 -> 2025 | B29: Plant shut-downs
A30: Start date | B30: End date | C30: Reason for shut-down | K30: Provide a very brief reason for plant shut-down e.g. "Shut-down prior to major outage"; "Emergency shut-down due to boiler tube leak". All emergency shut-downs must be listed (irrespective of whether or not they were required to be reported to the EA). There is no need to include periods of hot-standby here (e.g. to clear feed chute hopper blockages). For clinical waste incinerators which require regular shut-downs for boiler cleaning, there is no need to record these here (only those prior to major outages, and emergency shut-downs).
A31: 2025-01-15 | B31: 2025-01-16 | C31: A2 Furnace tube leak
A32: 2025-02-24 | B32: 2025-02-16 | C32: A2 Final economiser grit blast cleaning
A33: 2025-03-17 | B33: 2025-03-19 | C33: A2 2nd pass tube leak
A34: 2025-04-18 | B34: 2025-04-20 | C34: A1 2nd pass tube leak
A35: 2025-05-27 | B35: 2025-06-13 | C35: A1 Shut down for annual outage
A36: 2025-06-05 | B36: 2025-06-20 | C36: A2 Shut down for annual outage
A37: 2025-09-26 | B37: 2025-09-27 | C37: A1 Shut down due to primary air fan bearing failure
A38: 2025-10-19 | B38: 2025-10-21 | C38: A1 & A2 Shut down for turbine work
A39: 2025-12-02 | B39: 2025-12-04 | C39: A1 & A2 Shut down for turbine work
A40: 2025-12-13 | B40: 2025-12-14 | C40: A1 Shut down due to electrical system fault

Sheet Perf. Form 1
A1: =+'Cover Page'!C39 -> 2025 | B1: Annual Reporting Performance Form 1
A3: =+'Cover Page'!B31 -> Permit EPR/HP3431HK | F3: Operator: | G3: =+'Cover Page'!B37 -> VEOLIA ES Staffordshire Limited
A4: Facility: | B4: =+'Cover Page'!B33:I33 -> Staffordshire Energy Recovery Facility | F4: Form: | G4: Performance 1
A6: Reporting Period from: | D6: 2025-01-01 | F6: to: | G6: 2025-12-31
A8: =+A1 -> 2025 | B8: Annual Reporting of Waste Disposal and Recovery
A9: Waste Description | C9: Disposal Route(s) | E9: Disposal Tonnes | G9: Recovery Tonnes | I9: % / tonne of waste incinerated
A10: 1) Hazardous Wastes
A11: APC Residues | C11: D09/D12 | E11: ='Operational Data'!G35 -> 7037.1 | I11: =IF((E11+G11)>0,(E11+G11)/'Operational Data'!$G$24, "-") -> 0.02269620798
A12: IBA | I12: =IF((E12+G12)>0,(E12+G12)/'Operational Data'!$G$24, "-") -> -
A13: Interceptor Waste | C13: D09 | E13: ='Operational Data'!G38 -> 94.5 | I13: =IF((E13+G13)>0,(E13+G13)/'Operational Data'!$G$24, "-") -> 0.0003047834554
I14: =IF((E14+G14)>0,(E14+G14)/'Operational Data'!$G$24, "-") -> -
A15: Total Hazardous Waste | E15: =SUM(E11:F14) -> 7131.6 | G15: =SUM(G11:H14) -> 0 | I15: =IF((E15+G15)>0,(E15+G15)/'Operational Data'!$G$24, "-") -> 0.02300099143
A17: 2) Non-Hazardous Wastes
A18: IBA | C18: R05 | G18: ='Operational Data'!G36 -> 57741.4 | I18: =IF((E18+G18)>0,(E18+G18)/'Operational Data'!$G$24, "-") -> 0.1862288192
A19: Ferrous Metal | C19: R04 | G19: ='Operational Data'!G37 -> 5459.56 | I19: =IF((E19+G19)>0,(E19+G19)/'Operational Data'!$G$24, "-") -> 0.01760829166
A20: Process Water | E20: 12088 | I20: =IF((E20+G20)>0,(E20+G20)/'Operational Data'!$G$24, "-") -> 0.03898648052
I21: =IF((E21+G21)>0,(E21+G21)/'Operational Data'!$G$24, "-") -> -
I22: =IF((E22+G22)>0,(E22+G22)/'Operational Data'!$G$24, "-") -> -
A23: Total Non-Hazardous Waste | E23: =SUM(E18:F22) -> 12088 | G23: =SUM(G18:H22) -> 63200.96 | I23: =IF((E23+G23)>0,(E23+G23)/'Operational Data'!$G$24, "-") -> 0.2428235913
A24: TOTAL WASTE | E24: =+E23+E15 -> 19219.6 | G24: =+G23+G15 -> 63200.96 | I24: =IF((E24+G24)>0,(E24+G24)/'Operational Data'!$G$24, "-") -> 0.2658245828
A26: Operator’s comments :
A31: =+A1 -> 2025 | B31: Annual Reporting of Water and Other Raw Material Usage
A32: Raw Material | E32: Usage | G32: Unit | H32: Specific Usage | J32: Unit
A33: Mains Water | E33: =+'Operational Data'!G43/1000 -> 37.827 | G33: m3 | H33: =IF(E33>0,E33/'Operational Data'!$G$24,"-") -> 0.0001220004631 | J33: m3/te
A34: Total Water | E34: =+'Operational Data'!G44+'Operational Data'!G43/1000 -> 37.827 | G34: m3 | H34: =IF(E34>0,E34/'Operational Data'!$G$24,"-") -> 0.0001220004631 | J34: m3/te
A35: Urea / Ammonia | E35: =+'Operational Data'!G45 -> 1268600 | G35: kg | H35: =IF(E35>0,E35/'Operational Data'!$G$24,"-") -> 4.091516312 | J35: kg/te
A36: Activated Carbon | E36: =+'Operational Data'!G47 -> 70700 | G36: kg | H36: =IF(E36>0,E36/'Operational Data'!$G$24,"-") -> 0.2280231777 | J36: kg/te
A37: Lime / hydrated lime / Sodium Bicarb. | E37: =+'Operational Data'!G48 -> 3666200 | G37: kg | H37: =IF(E37>0,E37/'Operational Data'!$G$24,"-") -> 11.82430798 | J37: kg/te
A38: Fuel Oil | E38: ='Operational Data'!G49/1000 -> 516.183 | G38: m3 | H38: =IF(E38>0,E38/'Operational Data'!$G$24,"-") -> 0.001664804639 | J38: m3/te
A39: Operator’s comments :
A43: =+A31 -> 2025 | B43: Annual Reporting of other performance indicators
A44: Parameter | C44: Results by Line
C45: A1 | D45: A2 | E45: A3 | F45: A4 | G45: A5 | I45: Turbine 1 | J45: Turbine 2
A46: Operating hours for the year, hours | C46: ='Operational Data'!G54 -> 7730 | D46: ='Operational Data'!G55 -> 7919 | I46: ='Operational Data'!G59 -> 3734.1
A47: Number of periods of abnormal operation, qty.
A48: Cumulative hours of abnormal operation for this year, hours
A50: Operator’s comments :
A54: Signed: | B54: Matthew Richardson | G54: Date: | H54: 2026-01-31

Sheet Energy Form 1
A1: =+'Cover Page'!C39 -> 2025 | B1: Annual Reporting of Energy Usage/Export
A3: =+'Cover Page'!B31 -> Permit EPR/HP3431HK | F3: Operator: | G3: =+'Cover Page'!B37 -> VEOLIA ES Staffordshire Limited
A5: Facility: | B5: =+'Cover Page'!B33:I33 -> Staffordshire Energy Recovery Facility | F5: Form: | G5: Energy 1
A7: Reporting Period from: | D7: =+'Perf. Form 1'!D6:E6 -> 2025-01-01 | F7: to: | G7: =+'Perf. Form 1'!G6:H6 -> 2025-12-31
A9: Energy Source | D9: Energy Usage | F9: Unit | G9: Specific Usage (KWh/tonne incinerated
A10: Electricity Produced | D10: =+'Operational Data'!G27 -> 89041 | F10: MWh | G10: =+'Operational Data'!H27 -> 287.1769699
A11: Electricity Imported | D11: =+'Operational Data'!G29 -> 12627 | F11: MWh | G11: =+'Operational Data'!H29 -> 40.72487504
A12: Electricity Exported | D12: =+'Operational Data'!G28 -> 79259 | F12: MWh | G12: =+'Operational Data'!H28 -> 255.6278507
A13: Gas Oil | D13: ='Operational Data'!G49 -> 516183 | F13: tonnes | G13: ='Operational Data'!H49 -> 1.664804639
A14: Steam/hot water exported | D14: =+'Operational Data'!G31 -> 0 | F14: GWh | G14: =+'Operational Data'!H31 -> -
A18: Operator’s comments :
A29: Signed: | B29: Matthew Richardson | G29: Date: | H29: 2026-01-31

Sheet Permit Compliance
A1: =+'Cover Page'!$B$29 -> Annual Performance Report 2025 | E1: =+'Cover Page'!$B$33 -> Staffordshire Energy Recovery Facility
A3: Summary of Permit Compliance
A5: Compliance with permit limits for continuously monitored pollutants
A7: The plant met its emission limits as shown in the table below:
A8: Substance | C8: Percentage time compliant during operationNote 1 | L8: Notes:
C9: Half-hourly limit | F9: Daily limit | L9: Note 1: Please report to 2 decimal places, i.e. xx.xx% Note 2: Please enter into this table any permit non-compliances that the EA has given a CCS score for. Please also enter any other non-compliances which you have notified to the EA (e.g. ELV exceedances) but which have not yet been assessed by the EA. There is no need to enter any notifications which were subsequently assessed by the EA not to be permit breaches. Note 3: Please enter information here (rather than just referencing the notifications that were sent to the EA) including where relevant the incineration line reference, pollutant and value of the measured result for any ELV exceedances.
A10: Particulates | C10: 1 | F10: 1
A11: Oxides of nitrogen | C11: 1 | F11: 1
A12: Sulphur dioxide | C12: 1 | F12: 1
A13: Carbon monoxide | C13: xx.xx % or 100.00% 95% of 10-min averages | F13: 1
A14: Total organic carbon | C14: 1 | F14: 1
A15: Hydrogen chloride | C15: 1 | F15: 1
A16: Ammonia | C16: 1 | F16: 1
C17: xx.xx % | F17: xx.xx %
A19: Summary of non-compliances under the permit Note 2
A20: Date | B20: Summary of non-compliance Note 3 | D20: Reason | G20: Measures taken to prevent reoccurrence | H20: CCS score if applicable*
H21: Impact | I21: Root cause
A27: *If the Environment Agency (EA) has given a Compliance Classification Scheme (CCS) score due to a permit non-compliance it should be entered here (CCS4 = No impact; CCS3 = Minor impact; CCS2 = Significant impact; CCS1 = Major impact). If the EA has not yet assessed a non-compliance which you have notified to them, these columns should be left blank. Enter N/A if no score was given for the root cause.
A29: Summary of any complaints received and actions to taken to resolve them.
A30: Date | B30: Summary of complaint [including Line/Reference] | E30: Reason (including whether substantiated by the operator or the EA) | H30: Measures taken to prevent reoccurrence

Sheet Improvements
A1: =+'Cover Page'!$B$29 -> Annual Performance Report 2025 | E1: =+'Cover Page'!$B$33 -> Staffordshire Energy Recovery Facility
A3: Summary of Plant Improvements
A5: Summary of any efficiency improvements that have been completed within the year.
A6: n/a
A16: Summary of any permit improvement conditions that have been completed within the year and the resulting environmental benefits.
A17: n/a
A27: Summary of any changes to the plant or operating techniques which required a variation to the permit and a summary of the resulting environmental impact.
A28: n/a
A38: Summary of any other improvements made to the plant or planned to be made and a summary of the resulting environmental benefits.
A39: n/a

Sheet Public Liasion
A1: =+'Cover Page'!$B$29 -> Annual Performance Report 2025 | E1: =+'Cover Page'!$B$33 -> Staffordshire Energy Recovery Facility
A3: Details of Public & Stakeholder Liaison
A5: Summary of events held during the reporting year.
A6: Date | C6: Description
A7: Monthly | C7: Contract meeting with Staffordshire W2R partnership
A9: Quarterly | C9: W2R partners meetings
A16: List of events planned for next year
A17: Date | C17: Description
A18: Monthly | C18: Contract meeting with Staffordshire W2R partnership
A20: Quarterly | C20: W2R partners meetings
A29: If you wish to be involved in the public liaison programme, please contact 0203 567 6300

Sheet CO2 N2O
A1: =+'Cover Page'!$B$29 -> Annual Performance Report 2025 | C1: =+'Cover Page'!$B$33 -> Staffordshire Energy Recovery Facility
A3: Carbon dioxide emissions and biogenic content of waste inputs | F3: Notes:
A5: Carbon dioxide emissions (all types of plant)
B6: Annual mass of carbon dioxide released | C6: tonnes | D6: 374854
B7: Annual mass of carbon dioxide released per tonne of waste burned | C7: t CO2 / t waste | D7: =IF(D6="","", D6/'Operational Data'!G24) -> 1.208987274 | F7: Note 1: All permits require operators to continuously monitor CO2 to EN14181 and flow to BS EN 16911-2 (unless otherwise agreed in writing). Operators must therefore use the results from these instruments to calculate their annual CO2 emissions. Where an operator does not have a flow meter calibrated to BS EN 16911-2, the averaged flow measurement from that year's periodic monitoring can be used instead. If the plant does not have calibrated CO2 CEMS, a suitably justified emissions factor can be used.
B8: Annual mass of carbon dioxide released per MWh of energy exported | C8: t CO2 / MWh export | D8: =IF(D6="","", D6/'Operational Data'!G28) -> 4.729481825
B9: Description of how annual carbon dioxide mass emission has been calculated. See Note 1 | C9: CEM Data
A10: Nitrous oxide emissions (only plants which use ammonia or urea to abate NOx emissions)
B11: Annual mass emissions of nitrous oxide | C11: tonnes N2O | D11: 1.0024
B12: Description of how annual nitrous oxide mass emission has been calculated See Note 2 | C12: CEM Data | F12: Note 2: All permits require operators to continuously monitor N2O to EN14181 and flow to BS EN 16911-2, unless otherwise agreed in writing. Operators must therefore use the results from these instruments to calculate their annual N2O emissions. Where an operator does not have a flow meter calibrated to BS EN 16911-2, the averaged flow measurement from periodic monitoring can be used instead. If the plant does not have calibrated N2O CEMS, data from periodic monitoring or a suitably justified emissions factor can be used instead.
A13: Total annual carbon dioxide + nitrous oxide emissions. See Note 3. | C13: tonnes CO2e | D13: =IF(D11="","",(D11*265)+D6) -> 375119.636 | F13: Note 3: Total annual carbon dioxide and nitrous oxide emissions reported as carbon dioxide equivalent where 1 tonne nitrous oxide is equivalent to 265 tonnes carbon dioxide.
A14: Biogenic CO2 emissions (See Note 4) | F14: Note 4: Only plants combusting residual municipal waste, refuse derived fuel or solid recovered fuel need complete this section.
B15: Percentage of total carbon dioxide emissions arising from biogenic waste | C15: % | D15: 0.554
B16: No. of measurements undertaken | C16: Number | D16: 1
B17: Description of how percentage biogenic carbon dioxide emissions have been measured or calculated. See Note 5 | F17: Note 5: The results from C14 sampling should be used if this is carried out at the plant (either via an installed sampler or from spot samples). Otherwise, as an approximation (and in lieu of any more accurate metrics which may be developed in future), the measured or estimated biogenic fraction by net calorific value (see Note 6) can be assumed to be the same as the biogenic CO2 fraction of the total CO2 emissions from the plant.
A18: Biogenic fraction of waste feedstock (See Note 4)
B19: Yearly average biogenic percentage of the waste by net calorific value (NCV) | C19: %
B20: Description of how biogenic percentage (by NCV) has been calculated or estimated. See Note 6 | F20: Note 6: If C14 sampling is carried out at the plant, the methodology set out in the embedded document entitled "Renewable Energy Association Energy Content of Fuels - Description of Method" embedded below can be used to calculate the biogenic percentage by net calorific value. Otherwise, data from waste sampling or BIOMA software can be used; or if none of these are available, an estimated figure with justification or a figure assumed on the basis of up-to-date industry data can be used.
B21: Yearly average biogenic percentage of the waste by mass | C21: %
B22: If waste sampling undertaken, no. of samples used to ascertain average biogenic percentages above | C22: Number
B23: Description of how biogenic percentage (by mass) has been calculated or estimated. See Note 7 | F23: Note 7: Where available, data from waste sampling should be used; otherwise, an estimated figure with justification can be used, or a figure assumed on the basis of up-to-date industry data.
B25: Comments:

Sheet Residues
A1: =+'Cover Page'!$B$29 -> Annual Performance Report 2025 | E1: =+'Cover Page'!$B$33 -> Staffordshire Energy Recovery Facility
A3: Summary of Residue Handling for the reporting year
A5: The plant has undergone rigorous testing to prove that the IBA is non-hazardous. The IBA is of a consistently high standard and there have been no failures in the last 24 samples. IBA is transported to Ling Hall in Rugby, where it is reprocessed into a number of different graded aggregates. Metals are further extracted from the process and recycled. In addition to Dioxins/Furans and dioxin-like PCB's, Total Organic Carbon, POPs and metals tested in IBA are Antimony, Cadmium, Thallium, Mercury, Lead, Chromium, Copper, Manganese, Nickel, Arsenic, Cobalt, Vanadium, Zinc and their compounds. APC residue is the fine particulate matter that is removed at the end of the gas cleansing process. It contains residues from the waste gas and the reactants used to treat the gas. APC is captured in the bag house filters in the plant before the gas is emitted and dispersed through the ERFs two 80m stacks. The APC from the Staffordshire ERF is sent to another Veolia facility for use in their treatment facility, Empire Works, or, for permanent storage at Minosus | K5: Include in here a summary of residue handling regimes and destinations
A28: Residue Quality Monitoring Requirements
A30: Summary of monitoring undertaken and compliance
A31: As per permit requirements
A38: Commentary on any specific events
A39: Date & Event | C39: Description
A52: Residue Quality Monitoring Results
A53: Parameter (unit) | C53: Limit* | D53: Normal Operation
D54: Bottom ash | F54: APC Residues
A55: Loss on Ignition (average %) | C55: <5%
A56: Total Organic Carbon (average %) | C56: <3% | D56: 1
A57: No. of Assessments Undertaken | C57: ---
A58: No. of Hazardous Results | C58: ---
A59: * The permit will specify a limit of either 5% loss on ignition or 3% total organic carbon. If both are measured anyway, please enter the results here, even where the limit does not apply.
A61: Comments :

Sheet Water
A1: =+'Cover Page'!$B$29 -> Annual Performance Report 2025 | E1: =+'Cover Page'!$B$33 -> Staffordshire Energy Recovery Facility
A3: Emissions to Water
A5: Summary of monitoring undertaken and compliance
A6: As per Severn Trent discharge consent of trade effluent to public foul sewer
A13: Commentary on any specific events
A14: Date & Event | C14: Description
A22: Emissions to Water / Sewer
A23: Parameter | D23: Monitoring Frequency | F23: Limit | G23: Target | H23: Max. | I23: Average
A24: pH | D24: Periodic | F24: 6 to 10 | H24: 7.7 | I24: 7.5
A25: COD | D25: Periodic | F25: 800 | H25: 97 | I25: 54.6
A26: Suspended Solids | D26: Periodic | F26: 400 | H26: 25 | I26: 14.6

Sheet Air (periodic)
A1: =+'Cover Page'!$B$29 -> Annual Performance Report 2025 | E1: =+'Cover Page'!$B$33 -> Staffordshire Energy Recovery Facility
A3: Emissions to Air (periodically monitored)
A5: Summary of monitoring undertaken, standards used and compliance | L5: Notes:
A6: As per permit requirements | L6: Template may require adjustment for any bespoke monitoring requirements of permit - please also check that all default ELV values, reference periods and the stated oxygen reference value match those for your plant, and edit if necessary!
A9: Results of emissions to air that are periodically monitored - oxygen reference 11%
A10: Substance | C10: Ref. Period | D10: Emission Limit Value | J10: Average | L10: User to add additional tables as necessary, depending on whether quarterly or bi-annual reporting is required for the compliance year
F11: A1 (Q1&Q2) | G11: A2 (Q1&Q2) | H11: A1 (Q3&Q4) | I11: A2 (Q3&Q4) | J11: A1 | K11: A2
A12: Hydrogen fluoride | C12: 30min x 3 | D12: 1 mg/m3 | F12: 0.0233 | G12: 0.023 | H12: 0.06 | I12: 0.067 | J12: =IF(F12="","",AVERAGE(F12,H12)) -> 0.04165 | K12: =IF(G12="","",AVERAGE(G12,I12)) -> 0.045
A13: Cd and Tl and their compounds | C13: 30min x 3 | D13: 0.02 mg/m3 | F13: 0.00117 | G13: 0.00113 | H13: 0.0014 | I13: 0.0016 | J13: =IF(F13="","",AVERAGE(F13,H13)) -> 0.001285 | K13: =IF(G13="","",AVERAGE(G13,I13)) -> 0.001365
A14: Hg and its compounds | C14: 30min x 3 | D14: 0.02 mg/m3 | F14: 0.0004 | G14: 0.00036 | H14: 0.0005 | I14: 0.00043 | J14: 0.00045 | K14: 0.000395
A15: Sb, As, Pb, Cr, Co, Cu, Mn, Ni, V and their compounds | C15: 30min x 3 | D15: 0.3 mg/m3 | F15: 0.12667 | G15: 0.02767 | H15: 0.0263 | I15: 0.0363 | J15: 0.076485 | K15: 0.031985
A16: Dioxins & Furans (I-TEQ) | C16: 6-8hrs | D16: 0.06 ng/m3 | F16: 0.00058 | G16: 0.0011 | H16: 0.0019 | I16: 0.004 | J16: 0.00124 | K16: 0.00255
A17: PCBs (WHO-TEQ Humans / Mammals) | C17: 6-8hrs | D17: None set ng/m3 | F17: 0.0001 | G17: 0.0035 | H17: 0.00019 | I17: 0.00049 | J17: 0.000145 | K17: 0.001995
A18: PCBs (WHO-TEQ Fish) | C18: 6-8hrs | D18: None set ng/m3 | F18: 8.2e-06 | G18: 2.3e-05 | H18: 1.1e-05 | I18: 2.5e-05 | J18: 9.6e-06 | K18: 2.4e-05
A19: PCBs (WHO-TEQ Birds) | C19: 6-8hrs | D19: None set ng/m3 | F19: 0.0013 | G19: 0.0021 | H19: 0.0012 | I19: 0.0017 | J19: 0.00125 | K19: 0.0019
A20: Dioxins & Furans (WHO-TEQ Humans / Mammals) | C20: 6-8hrs | D20: None set ng/m3 | F20: 0.00064 | G20: 0.0012 | H20: 0.0021 | I20: 0.0044 | J20: 0.00137 | K20: 0.0028
A21: Dioxins & Furans (WHO-TEQ Fish) | C21: 6-8hrs | D21: None set ng/m3 | F21: 0.0006 | G21: 0.0012 | H21: 0.0022 | I21: 0.0046 | J21: 0.0014 | K21: 0.0029
A22: Dioxins & Furans (WHO-TEQ Birds) | C22: 6-8hrs | D22: None set ng/m3 | F22: 0.0014 | G22: 0.0018 | H22: 0.0037 | I22: 0.0068 | J22: 0.00255 | K22: 0.0043
A23: Polybrominated dibenzo-Dioxins & Furans | C23: 6-8hrs | D23: None set ng/m3 | F23: 0.0004 | G23: 0.00039 | H23: 0.00104 | I23: 0.00067 | J23: 0.00072 | K23: 0.00053
A24: Total PAH | C24: 6-8hrs | D24: None set µg/m2 | H24: 0.43 | I24: 0.4 | J24: =AVERAGE(F24,H24) -> 0.43 | K24: =AVERAGE(G24,I24) -> 0.4
A25: Anthanthrene | C25: 6-8hrs | D25: None set µg/m3 | H25: 0.0015 | I25: 0.0015 | J25: =AVERAGE(F25,H25) -> 0.0015 | K25: =AVERAGE(G25,I25) -> 0.0015
A26: Benzo(a)anthracene | C26: 6-8hrs | D26: None set µg/m3 | H26: 0.0015 | I26: 0.0018 | J26: =AVERAGE(F26,H26) -> 0.0015 | K26: 0.0018
A27: Benzo(a)pyrene | C27: 6-8hrs | D27: None set µg/m3 | H27: 0.002 | I27: 0.0015 | J27: 0.002 | K27: 0.0015
A28: Benzo(b)fluoranthene | C28: 6-8hrs | D28: None set µg/m3 | H28: 0.0019 | I28: 0.0024 | J28: 0.0019 | K28: 0.0024
A29: Benzo(b)naptho(2,1-d) thiophene | C29: 6-8hrs | D29: None set µg/m3 | H29: 0.0015 | I29: 0.0015 | J29: 0.0015 | K29: 0.0015
A30: Benzo(c)phenanthrene | C30: 6-8hrs | D30: None set µg/m3 | H30: 0.0015 | I30: 0.0015 | J30: 0.0015 | K30: 0.0015
A31: Benzo(ghi)perylene | C31: 6-8hrs | D31: None set µg/m3 | H31: 0.017 | I31: 0.0079 | J31: 0.017 | K31: 0.0079
A32: Benzo(k)fluoranthene | C32: 6-8hrs | D32: None set µg/m3 | H32: 0.0015 | I32: 0.0015 | J32: 0.0015 | K32: 0.0015
A33: Cholanthrene | C33: 6-8hrs | D33: None set µg/m3 | H33: 0.0015 | I33: 0.0015 | J33: 0.0015 | K33: 0.0015
A34: Chrysene | C34: 6-8hrs | D34: None set µg/m3 | H34: 0.0015 | I34: 0.0028 | J34: 0.0015 | K34: 0.0028
A35: Cyclopenta(cd)pyrene | C35: 6-8hrs | D35: None set µg/m3 | H35: 0.0015 | I35: 0.0015 | J35: 0.0015 | K35: 0.0015
A36: Dibenzo(ai)pyrene | C36: 6-8hrs | D36: None set µg/m3 | H36: 0.0015 | I36: 0.0015 | J36: 0.0015 | K36: 0.0015
A37: Dibenzo(ah)anthracene | C37: 6-8hrs | D37: None set µg/m3 | H37: 0.0015 | I37: 0.0015 | J37: 0.0015 | K37: 0.0015
A38: Fluoranthene | C38: 6-8hrs | D38: None set µg/m3 | H38: 0.034 | I38: 0.034 | J38: 0.034 | K38: 0.034
A39: Indeno(123-cd) pyrene | C39: 6-8hrs | D39: None set µg/m3 | H39: 0.0022 | I39: 0.0015 | J39: 0.0022 | K39: 0.0015
A40: Naphthalene | C40: 6-8hrs | D40: None set µg/m3 | H40: 0.35 | I40: 0.33 | J40: 0.35 | K40: 0.33
A41: Comments :
A42: PAH periodic emissions monitoring is an annual requirement and was conducted in Q3/Q4

Sheet Air (CEMS)
A1: =+'Cover Page'!$B$29 -> Annual Performance Report 2025 | I1: =+'Cover Page'!$B$33 -> Staffordshire Energy Recovery Facility
A3: Emissions to Air (continuously monitored)
N4: Notes:
A5: Summary of monitoring undertaken, standards used and compliance | N5: Template may require adjustment for any bespoke monitoring requirements of permit
N6: Please check that all default ELV values match those for your plant and edit if necessary!
N7: Report to 1 decimal place
A11: Results of emissions to air that are continuously monitored (maximum and average values for each line) - oxygen reference 11%
A12: Substance | B12: Reference Period | C12: Emission Limit Value | D12: A1 | F12: A2 | H12: A3 | J12: A4 | L12: A5
D13: Max. | E13: Avg. | F13: Max. | G13: Avg. | H13: Max. | I13: Avg. | J13: Max. | K13: Avg. | L13: Max. | M13: Avg.
A14: Oxides of nitrogen | B14: Daily mean | C14: 180 mg/m3 | D14: =NOx!O19 -> 175.5 | E14: =NOx!N19 -> 154.325 | F14: =NOx!O34 -> 175.9 | G14: =NOx!N34 -> 155.7916667
B15: ½ hourly mean | C15: 400 mg/m3 | D15: =NOx!M19 -> 354.8 | E15: =NOx!L19 -> 154.3083333 | F15: =NOx!M34 -> 321.9 | G15: =NOx!L34 -> 155.9666667
A16: Particulates | B16: Daily mean | C16: 5 mg/m3 | D16: =Particulates!O19 -> 1.9 | E16: =Particulates!N19 -> 0.2 | F16: =Particulates!O34 -> 0.6 | G16: =Particulates!N34 -> 0.4
B17: ½ hourly mean | C17: 30 mg/m3 | D17: =Particulates!M19 -> 3.3 | E17: =Particulates!L19 -> 0.2916666667 | F17: =Particulates!M34 -> 6.5 | G17: =Particulates!L34 -> 0.4
A18: Total Organic Carbon | B18: Daily mean | C18: 10 mg/m3 | D18: =TOC!O19 -> 1 | E18: =TOC!N19 -> 0.35 | F18: =TOC!O34 -> 1.1 | G18: =TOC!N34 -> 0.01666666667
B19: ½ hourly mean | C19: 20 mg/m3 | D19: =TOC!M19 -> 12.7 | E19: =TOC!L19 -> 0.425 | F19: =TOC!M34 -> 16.4 | G19: =TOC!L34 -> 0.06666666667
A20: Hydrogen chloride | B20: Daily mean | C20: 8 mg/m3 | D20: =HCl!O19 -> 7.9 | E20: =HCl!N19 -> 5.741666667 | F20: =HCl!O34 -> 8 | G20: =HCl!N34 -> 5.791666667
B21: ½ hourly mean | C21: 60 mg/m3 | D21: =HCl!M19 -> 30.4 | E21: =HCl!L19 -> 5.766666667 | F21: =HCl!M34 -> 36.5 | G21: =HCl!L34 -> 5.775
A22: Sulphur dioxide | B22: Daily mean | C22: 40 mg/m3 | D22: ='SO2'!O19 -> 34.7 | E22: ='SO2'!N19 -> 19.65 | F22: ='SO2'!O34 -> 33.2 | G22: ='SO2'!N34 -> 20.15
B23: ½ hourly mean | C23: 200 mg/m3 | D23: ='SO2'!M19 -> 145.7 | E23: ='SO2'!L19 -> 19.73333333 | F23: ='SO2'!M34 -> 118 | G23: ='SO2'!L34 -> 20.25833333
A24: Carbon monoxide | B24: Daily mean | C24: 50 mg/m3 | D24: ='CO 95% 10 min'!Q22 -> 7.8 | E24: ='CO 95% 10 min'!P22 -> 1.85 | F24: ='CO 95% 10 min'!Q37 -> 22.5 | G24: ='CO 95% 10 min'!P37 -> 2.675
B25: 95%ile 10-min avg * | C25: 150 mg/m3 * | D25: ='CO 95% 10 min'!M22 -> 6.791666667 | E25: ='CO 95% 10 min'!N22 -> 2.6 | F25: ='CO 95% 10 min'!M37 -> 15.4 | G25: ='CO 95% 10 min'!N37 -> 3.6
A26: Ammonia | B26: Daily mean | C26: 15 mg/m3 | D26: ='NH3'!O19 -> 10.1 | E26: ='NH3'!N19 -> 4.475 | F26: ='NH3'!O34 -> 4 | G26: ='NH3'!N34 -> 2.133333333
A27: * = delete as appropriate, depending on whether your plant has half-hourly or 10-min CO ELVs
A28: Comments :

Sheet HCl
A1: =+'Cover Page'!$B$29 -> Annual Performance Report 2025 | E1: =+'Cover Page'!$B$33 -> Staffordshire Energy Recovery Facility
A3: Monitoring of Hydrogen Chloride emissions | D3: Whole Installation | G3: See Notes in Cell Q3 | J3: =+A3 -> Monitoring of Hydrogen Chloride emissions | N3: Per Combustion Line | Q3: Notes:
Q4: User to add logic to complete Whole installation, Table A5:G18. From the data in Per Combustion Line, Table J6:O79, subject to No. of lines installed
A5: =+'Cover Page'!C39 -> 2025 | B5: 1/2 Hourly Reference Periods | E5: Daily Reference Periods
A6: mg/Nm3 | B6: 1/2 hourly HCl ELV | C6: Monthly mean of half-hourly averages | D6: Highest half- hourly average | E6: Daily HCl ELV | F6: Monthly mean of daily averages | G6: Highest daily average | J6: =+A5 -> 2025 | K6: mg/Nm3 | L6: Monthly mean of half-hourly averages | M6: Highest half- hourly average | N6: Monthly mean of daily averages | O6: Highest daily average
A7: Jan | B7: 60 | C7: =IF(L7="","",AVERAGE(L7,L22)) -> 4.75 | D7: =IF(M7="","",AVERAGE(M7,M22)) -> 17.55 | E7: 8 | F7: =IF(N7="","",AVERAGE(N7,N22)) -> 4.8 | G7: =IF(O7="","",AVERAGE(O7,O22)) -> 6.1 | J7: A1 | K7: Jan | L7: 4.7 | M7: 23.5 | N7: 4.8 | O7: 6.4
A8: Feb | B8: 60 | C8: =IF(L8="","",AVERAGE(L8,L23)) -> 4.95 | D8: =IF(M8="","",AVERAGE(M8,M23)) -> 14.35 | E8: 8 | F8: =IF(N8="","",AVERAGE(N8,N23)) -> 4.95 | G8: =IF(O8="","",AVERAGE(O8,O23)) -> 6 | K8: Feb | L8: 4.5 | M8: 10.2 | N8: 4.5 | O8: 5.6
A9: Mar | B9: 60 | C9: 4.8 | D9: 11.65 | E9: 8 | F9: 4.75 | G9: 6.3 | K9: Mar | L9: 4.7 | M9: 10.1 | N9: 4.6 | O9: 6.3 | Q9: Whole Installation table A5:G18:
A10: Apr | B10: 60 | C10: 5.6 | D10: 19.7 | E10: 8 | F10: 5.6 | G10: 7.8 | K10: Apr | L10: 5.5 | M10: 23.3 | N10: 5.4 | O10: 7.9 | Q10: Mean: for 1/2 hourly and daily periods calculate mean of values across all operational combustion lines for the month
A11: May | B11: 60 | C11: 5.8 | D11: 20.65 | E11: 8 | F11: 5.8 | G11: 7.35 | K11: May | L11: 5.9 | M11: 26.1 | N11: 5.9 | O11: 7.3
A12: Jun | B12: 60 | C12: 6.4 | D12: 30.5 | E12: 8 | F12: 6.4 | G12: 7.85 | K12: Jun | L12: 6.5 | M12: 24.5 | N12: 6.4 | O12: 7.7
A13: Jul | B13: 60 | C13: 7 | D13: 26.5 | E13: 8 | F13: 7 | G13: 7.95 | K13: Jul | L13: 6.8 | M13: 23.6 | N13: 6.8 | O13: 7.9 | Q13: Maximum: for 1/2 hourly and daily periods use the highest value across all operational combustion lines for the month
A14: Aug | B14: 60 | C14: 6.25 | D14: 19.4 | E14: 8 | F14: 6.2 | G14: 7.25 | K14: Aug | L14: 6.4 | M14: 18 | N14: 6.3 | O14: 7.3
A15: Sep | B15: 60 | C15: 6.1 | D15: 22.05 | E15: 8 | F15: 6.1 | G15: 7.2 | K15: Sep | L15: 6.4 | M15: 30.4 | N15: 6.4 | O15: 7.3
A16: Oct | B16: 60 | C16: 5.95 | D16: 19.2 | E16: 8 | F16: 5.95 | G16: 7.15 | K16: Oct | L16: 6.3 | M16: 18.5 | N16: 6.3 | O16: 7.1
A17: Nov | B17: 60 | C17: 5.6 | D17: 24.85 | E17: 8 | F17: 5.6 | G17: 6.8 | K17: Nov | L17: 5.9 | M17: 24.2 | N17: 5.9 | O17: 7
A18: Dec | B18: 60 | C18: 6.05 | D18: 23.2 | E18: 8 | F18: 6.05 | G18: 7.45 | K18: Dec | L18: 5.6 | M18: 19.8 | N18: 5.6 | O18: 7.5
K19: Annual | L19: =AVERAGE(L7:L18) -> 5.766666667 | M19: =MAX(M7:M18) -> 30.4 | N19: =AVERAGE(N7:N18) -> 5.741666667 | O19: =MAX(O7:O18) -> 7.9
J21: =+A5 -> 2025 | K21: mg/Nm3 | L21: Monthly mean of half-hourly averages | M21: Highest half- hourly average | N21: Monthly mean of daily averages | O21: Highest daily average
J22: A2 | K22: Jan | L22: 4.8 | M22: 11.6 | N22: 4.8 | O22: 5.8
K23: Feb | L23: 5.4 | M23: 18.5 | N23: 5.4 | O23: 6.4
K24: Mar | L24: 4.9 | M24: 13.2 | N24: 4.9 | O24: 6.3
K25: Apr | L25: 5.7 | M25: 16.1 | N25: 5.8 | O25: 7.7
K26: May | L26: 5.7 | M26: 15.2 | N26: 5.7 | O26: 7.4
K27: Jun | L27: 6.3 | M27: 36.5 | N27: 6.4 | O27: 8
K28: Jul | L28: 7.2 | M28: 29.4 | N28: 7.2 | O28: 8
K29: Aug | L29: 6.1 | M29: 20.8 | N29: 6.1 | O29: 7.2
K30: Sep | L30: 5.8 | M30: 13.7 | N30: 5.8 | O30: 7.1
K31: Oct | L31: 5.6 | M31: 19.9 | N31: 5.6 | O31: 7.2
K32: Nov | L32: 5.3 | M32: 25.5 | N32: 5.3 | O32: 6.6
K33: Dec | L33: 6.5 | M33: 26.6 | N33: 6.5 | O33: 7.4
K34: Annual | L34: =AVERAGE(L22:L33) -> 5.775 | M34: =MAX(M22:M33) -> 36.5 | N34: =AVERAGE(N22:N33) -> 5.791666667 | O34: =MAX(O22:O33) -> 8
J36: =+A5 -> 2025 | K36: mg/Nm3 | L36: Monthly mean of half-hourly averages | M36: Highest half- hourly average | N36: Monthly mean of daily averages | O36: Highest daily average
J37: A3 | K37: Jan
K38: Feb
K39: Mar
K40: Apr
K41: May
K42: Jun
K43: Jul
K44: Aug
K45: Sep
K46: Oct
K47: Nov
A48: Comments : | K48: Dec
K49: Annual | L49: =AVERAGE(L37:L48) ->  | M49: =MAX(M37:M48) -> 0 | N49: =AVERAGE(N37:N48) ->  | O49: =MAX(O37:O48) -> 0
J51: =+A5 -> 2025 | K51: mg/Nm3 | L51: Monthly mean of half-hourly averages | M51: Highest half- hourly average | N51: Monthly mean of daily averages | O51: Highest daily average
J52: A4 | K52: Jan
K53: Feb
K54: Mar
K55: Apr
K56: May
K57: Jun
K58: Jul
K59: Aug
K60: Sep
K61: Oct
K62: Nov
K63: Dec
K64: Annual | L64: =AVERAGE(L52:L63) ->  | M64: =MAX(M52:M63) -> 0 | N64: =AVERAGE(N52:N63) ->  | O64: =MAX(O52:O63) -> 0
J66: =+A5 -> 2025 | K66: mg/Nm3 | L66: Monthly mean of half-hourly averages | M66: Highest half- hourly average | N66: Monthly mean of daily averages | O66: Highest daily average
J67: A5 | K67: Jan
K68: Feb
K69: Mar
K70: Apr
K71: May
K72: Jun
K73: Jul
K74: Aug
K75: Sep
K76: Oct
K77: Nov
K78: Dec
K79: Annual | L79: =AVERAGE(L67:L78) ->  | M79: =MAX(M67:M78) -> 0 | N79: =AVERAGE(N67:N78) ->  | O79: =MAX(O67:O78) -> 0

Sheet SO2
A1: =+'Cover Page'!$B$29 -> Annual Performance Report 2025 | E1: =+'Cover Page'!$B$33 -> Staffordshire Energy Recovery Facility
A3: Monitoring of Sulphur dioxide emissions | D3: Whole Installation | G3: See Notes in Cell Q3 | J3: =+A3 -> Monitoring of Sulphur dioxide emissions | N3: Per Combustion Line | Q3: Notes:
Q4: User to add logic to complete Whole installation, Table A5:G18. From the data in Per Combustion Line, Table J6:O79, subject to No. of lines installed
A5: =+'Cover Page'!C39 -> 2025 | B5: 1/2 Hourly Reference Periods | E5: Daily Reference Periods
A6: mg/Nm3 | B6: 1/2 hourly SO2 ELV | C6: Monthly mean of half-hourly averages | D6: Highest half- hourly average | E6: Daily SO2 ELV | F6: Monthly mean of daily averages | G6: Highest daily average | J6: =+A5 -> 2025 | K6: mg/Nm3 | L6: Monthly mean of half-hourly averages | M6: Highest half- hourly average | N6: Monthly mean of daily averages | O6: Highest daily average
A7: Jan | B7: 200 | C7: =IF(L7="","",AVERAGE(L7,L22)) -> 14.2 | D7: =IF(M7="","",AVERAGE(M7,M22)) -> 60.15 | E7: 40 | F7: =IF(N7="","",AVERAGE(N7,N22)) -> 14.3 | G7: =IF(O7="","",AVERAGE(O7,O22)) -> 27.35 | J7: A1 | K7: Jan | L7: 12.6 | M7: 52.1 | N7: 12.9 | O7: 25.8
A8: Feb | B8: 200 | C8: =IF(L8="","",AVERAGE(L8,L23)) -> 17.75 | D8: =IF(M8="","",AVERAGE(M8,M23)) -> 63.8 | E8: 40 | F8: =IF(N8="","",AVERAGE(N8,N23)) -> 17.7 | G8: =IF(O8="","",AVERAGE(O8,O23)) -> 25.2 | K8: Feb | L8: 13.7 | M8: 63.4 | N8: 13.7 | O8: 21.3
A9: Mar | B9: 200 | C9: 21.45 | D9: 77.65 | E9: 40 | F9: 21.4 | G9: 30.7 | K9: Mar | L9: 19 | M9: 65.5 | N9: 19 | O9: 31.2 | Q9: Whole Installation table A5:G18:
A10: Apr | B10: 200 | C10: 18.8 | D10: 66.9 | E10: 40 | F10: 18.65 | G10: 26.75 | K10: Apr | L10: 17.5 | M10: 63.9 | N10: 17.2 | O10: 25.5 | Q10: Mean: for 1/2 hourly and daily periods calculate mean of values across all operational combustion lines for the month
A11: May | B11: 200 | C11: 20.55 | D11: 113.5 | E11: 40 | F11: 20.45 | G11: 29.6 | K11: May | L11: 20.7 | M11: 145.7 | N11: 20.6 | O11: 28.7
A12: Jun | B12: 200 | C12: 25.35 | D12: 86.55 | E12: 40 | F12: 25.15 | G12: 32.85 | K12: Jun | L12: 27.6 | M12: 103.4 | N12: 27.4 | O12: 34.7
A13: Jul | B13: 200 | C13: 21.75 | D13: 92.15 | E13: 40 | F13: 21.5 | G13: 32.1 | K13: Jul | L13: 22.3 | M13: 82.8 | N13: 22 | O13: 32.1 | Q13: Maximum: for 1/2 hourly and daily periods use the highest value across all operational combustion lines for the month
A14: Aug | B14: 200 | C14: 21.3 | D14: 93.65 | E14: 40 | F14: 21.25 | G14: 29.95 | K14: Aug | L14: 21.5 | M14: 93.4 | N14: 21.5 | O14: 32
A15: Sep | B15: 200 | C15: 21.3 | D15: 92.7 | E15: 40 | F15: 21.15 | G15: 32.85 | K15: Sep | L15: 22.3 | M15: 117.7 | N15: 22.3 | O15: 33.4
A16: Oct | B16: 200 | C16: 23.15 | D16: 87.7 | E16: 40 | F16: 23.15 | G16: 32.9 | K16: Oct | L16: 23.2 | M16: 69.7 | N16: 23.1 | O16: 32.6
A17: Nov | B17: 200 | C17: 18.4 | D17: 96.6 | E17: 40 | F17: 18.35 | G17: 27.95 | K17: Nov | L17: 19.3 | M17: 75.2 | N17: 19.2 | O17: 28
A18: Dec | B18: 200 | C18: 15.95 | D18: 62.9 | E18: 40 | F18: 15.75 | G18: 25.75 | K18: Dec | L18: 17.1 | M18: 70.2 | N18: 16.9 | O18: 31.3
K19: Annual | L19: =AVERAGE(L7:L18) -> 19.73333333 | M19: =MAX(M7:M18) -> 145.7 | N19: =AVERAGE(N7:N18) -> 19.65 | O19: =MAX(O7:O18) -> 34.7
J21: =+A5 -> 2025 | K21: mg/Nm3 | L21: Monthly mean of half-hourly averages | M21: Highest half- hourly average | N21: Monthly mean of daily averages | O21: Highest daily average
J22: A2 | K22: Jan | L22: 15.8 | M22: 68.2 | N22: 15.7 | O22: 28.9
K23: Feb | L23: 21.8 | M23: 64.2 | N23: 21.7 | O23: 29.1
K24: Mar | L24: 23.9 | M24: 89.8 | N24: 23.8 | O24: 30.2
K25: Apr | L25: 20.1 | M25: 69.9 | N25: 20.1 | O25: 28
K26: May | L26: 20.4 | M26: 81.3 | N26: 20.3 | O26: 30.5
K27: Jun | L27: 23.1 | M27: 69.7 | N27: 22.9 | O27: 31
K28: Jul | L28: 21.2 | M28: 101.5 | N28: 21 | O28: 32.1
K29: Aug | L29: 21.1 | M29: 93.9 | N29: 21 | O29: 27.9
K30: Sep | L30: 20.3 | M30: 67.7 | N30: 20 | O30: 32.3
K31: Oct | L31: 23.1 | M31: 105.7 | N31: 23.2 | O31: 33.2
K32: Nov | L32: 17.5 | M32: 118 | N32: 17.5 | O32: 27.9
K33: Dec | L33: 14.8 | M33: 55.6 | N33: 14.6 | O33: 20.2
K34: Annual | L34: =AVERAGE(L22:L33) -> 20.25833333 | M34: =MAX(M22:M33) -> 118 | N34: =AVERAGE(N22:N33) -> 20.15 | O34: =MAX(O22:O33) -> 33.2
J36: =+A5 -> 2025 | K36: mg/Nm3 | L36: Monthly mean of half-hourly averages | M36: Highest half- hourly average | N36: Monthly mean of daily averages | O36: Highest daily average
J37: A3 | K37: Jan
K38: Feb
K39: Mar
K40: Apr
K41: May
K42: Jun
K43: Jul
K44: Aug
K45: Sep
K46: Oct
K47: Nov
A48: Comments : | K48: Dec
K49: Annual | L49: =AVERAGE(L37:L48) ->  | M49: =MAX(M37:M48) -> 0 | N49: =AVERAGE(N37:N48) ->  | O49: =MAX(O37:O48) -> 0
J51: =+A5 -> 2025 | K51: mg/Nm3 | L51: Monthly mean of half-hourly averages | M51: Highest half- hourly average | N51: Monthly mean of daily averages | O51: Highest daily average
J52: A4 | K52: Jan
K53: Feb
K54: Mar
K55: Apr
K56: May
K57: Jun
K58: Jul
K59: Aug
K60: Sep
K61: Oct
K62: Nov
K63: Dec
K64: Annual | L64: =AVERAGE(L52:L63) ->  | M64: =MAX(M52:M63) -> 0 | N64: =AVERAGE(N52:N63) ->  | O64: =MAX(O52:O63) -> 0
J66: =+A5 -> 2025 | K66: mg/Nm3 | L66: Monthly mean of half-hourly averages | M66: Highest half- hourly average | N66: Monthly mean of daily averages | O66: Highest daily average
J67: A5 | K67: Jan
K68: Feb
K69: Mar
K70: Apr
K71: May
K72: Jun
K73: Jul
K74: Aug
K75: Sep
K76: Oct
K77: Nov
K78: Dec
K79: Annual | L79: =AVERAGE(L67:L78) ->  | M79: =MAX(M67:M78) -> 0 | N79: =AVERAGE(N67:N78) ->  | O79: =MAX(O67:O78) -> 0

Sheet NOx
A1: =+'Cover Page'!$B$29 -> Annual Performance Report 2025 | E1: =+'Cover Page'!$B$33 -> Staffordshire Energy Recovery Facility
A3: Monitoring of Oxides of Nitrogen emissions | D3: Whole Installation | G3: See Notes in Cell Q3 | J3: =+A3 -> Monitoring of Oxides of Nitrogen emissions | N3: Per Combustion Line | Q3: Notes:
Q4: User to add logic to complete Whole installation, Table A5:G18. From the data in Per Combustion Line, Table J6:O79, subject to No. of lines installed
A5: =+'Cover Page'!C39 -> 2025 | B5: 1/2 Hourly Reference Periods | E5: Daily Reference Periods
A6: mg/Nm3 | B6: 1/2 hourly NOx ELV | C6: Monthly mean of half-hourly averages | D6: Highest half- hourly average | E6: Daily NOx ELV | F6: Monthly mean of daily averages | G6: Highest daily average | J6: =+A5 -> 2025 | K6: mg/Nm3 | L6: Monthly mean of half-hourly averages | M6: Highest half- hourly average | N6: Monthly mean of daily averages | O6: Highest daily average
A7: Jan | B7: 400 | C7: =IF(L7="","",AVERAGE(L7,L22)) -> 152.9 | D7: =IF(M7="","",AVERAGE(M7,M22)) -> 274.15 | E7: 180 | F7: =IF(N7="","",AVERAGE(N7,N22)) -> 153.05 | G7: =IF(O7="","",AVERAGE(O7,O22)) -> 167.35 | J7: A1 | K7: Jan | L7: 151.3 | M7: 267.3 | N7: 151.3 | O7: 162.1
A8: Feb | B8: 400 | C8: =IF(L8="","",AVERAGE(L8,L23)) -> 156.25 | D8: =IF(M8="","",AVERAGE(M8,M23)) -> 305.95 | E8: 180 | F8: =IF(N8="","",AVERAGE(N8,N23)) -> 156.25 | G8: =IF(O8="","",AVERAGE(O8,O23)) -> 169.3 | K8: Feb | L8: 151.7 | M8: 320.9 | N8: 151.7 | O8: 168.8
A9: Mar | B9: 400 | C9: 159.75 | D9: 278.95 | E9: 180 | F9: 159.2 | G9: 173.5 | K9: Mar | L9: 160.6 | M9: 305.7 | N9: 160.6 | O9: 172.9 | Q9: Whole Installation table A5:G18:
A10: Apr | B10: 400 | C10: 160.1 | D10: 302.7 | E10: 180 | F10: 160 | G10: 170.25 | K10: Apr | L10: 160.2 | M10: 311 | N10: 160.5 | O10: 170.4 | Q10: Mean: for 1/2 hourly and daily periods calculate mean of values across all operational combustion lines for the month
A11: May | B11: 400 | C11: 155.55 | D11: 292.35 | E11: 180 | F11: 155.3 | G11: 171.5 | K11: May | L11: 156.5 | M11: 305.1 | N11: 156.4 | O11: 173.9
A12: Jun | B12: 400 | C12: 148.3 | D12: 232.3 | E12: 180 | F12: 148.45 | G12: 154 | K12: Jun | L12: 144.1 | M12: 256.9 | N12: 144.1 | O12: 148.6
A13: Jul | B13: 400 | C13: 151.75 | D13: 214.85 | E13: 180 | F13: 151.85 | G13: 166.85 | K13: Jul | L13: 146.5 | M13: 206.6 | N13: 146.7 | O13: 164 | Q13: Maximum: for 1/2 hourly and daily periods use the highest value across all operational combustion lines for the month
A14: Aug | B14: 400 | C14: 156.1 | D14: 308.75 | E14: 180 | F14: 156.1 | G14: 166.3 | K14: Aug | L14: 162.8 | M14: 321.2 | N14: 162.8 | O14: 171.2
A15: Sep | B15: 400 | C15: 156.45 | D15: 338.35 | E15: 180 | F15: 156.5 | G15: 172.6 | K15: Sep | L15: 157.7 | M15: 354.8 | N15: 157.8 | O15: 173.7
A16: Oct | B16: 400 | C16: 151.4 | D16: 297.05 | E16: 180 | F16: 151.35 | G16: 170.25 | K16: Oct | L16: 148.4 | M16: 323.7 | N16: 148.6 | O16: 168.3
A17: Nov | B17: 400 | C17: 158.55 | D17: 280.35 | E17: 180 | F17: 158.5 | G17: 174.05 | K17: Nov | L17: 157.2 | M17: 293.5 | N17: 157.2 | O17: 175.5
A18: Dec | B18: 400 | C18: 154.55 | D18: 304.4 | E18: 180 | F18: 154.15 | G18: 172.9 | K18: Dec | L18: 154.7 | M18: 307.2 | N18: 154.2 | O18: 169.9
K19: Annual | L19: =AVERAGE(L7:L18) -> 154.3083333 | M19: =MAX(M7:M18) -> 354.8 | N19: =AVERAGE(N7:N18) -> 154.325 | O19: =MAX(O7:O18) -> 175.5
J21: =+A5 -> 2025 | K21: mg/Nm3 | L21: Monthly mean of half-hourly averages | M21: Highest half- hourly average | N21: Monthly mean of daily averages | O21: Highest daily average
J22: A2 | K22: Jan | L22: 154.5 | M22: 281 | N22: 154.8 | O22: 172.6
K23: Feb | L23: 160.8 | M23: 291 | N23: 160.8 | O23: 169.8
K24: Mar | L24: 158.9 | M24: 252.2 | N24: 157.8 | O24: 174.1
K25: Apr | L25: 160 | M25: 294.4 | N25: 159.5 | O25: 170.1
K26: May | L26: 154.6 | M26: 279.6 | N26: 154.2 | O26: 169.1
K27: Jun | L27: 152.5 | M27: 207.7 | N27: 152.8 | O27: 159.4
K28: Jul | L28: 157 | M28: 223.1 | N28: 157 | O28: 169.7
K29: Aug | L29: 149.4 | M29: 296.3 | N29: 149.4 | O29: 161.4
K30: Sep | L30: 155.2 | M30: 321.9 | N30: 155.2 | O30: 171.5
K31: Oct | L31: 154.4 | M31: 270.4 | N31: 154.1 | O31: 172.2
K32: Nov | L32: 159.9 | M32: 267.2 | N32: 159.8 | O32: 172.6
K33: Dec | L33: 154.4 | M33: 301.6 | N33: 154.1 | O33: 175.9
K34: Annual | L34: =AVERAGE(L22:L33) -> 155.9666667 | M34: =MAX(M22:M33) -> 321.9 | N34: =AVERAGE(N22:N33) -> 155.7916667 | O34: =MAX(O22:O33) -> 175.9
J36: =+A5 -> 2025 | K36: mg/Nm3 | L36: Monthly mean of half-hourly averages | M36: Highest half- hourly average | N36: Monthly mean of daily averages | O36: Highest daily average
J37: A3 | K37: Jan
K38: Feb
K39: Mar
K40: Apr
K41: May
K42: Jun
K43: Jul
K44: Aug
K45: Sep
K46: Oct
K47: Nov
A48: Comments : | K48: Dec
K49: Annual | L49: =AVERAGE(L37:L48) ->  | M49: =MAX(M37:M48) -> 0 | N49: =AVERAGE(N37:N48) ->  | O49: =MAX(O37:O48) -> 0
J51: =+A5 -> 2025 | K51: mg/Nm3 | L51: Monthly mean of half-hourly averages | M51: Highest half- hourly average | N51: Monthly mean of daily averages | O51: Highest daily average
J52: A4 | K52: Jan
K53: Feb
K54: Mar
K55: Apr
K56: May
K57: Jun
K58: Jul
K59: Aug
K60: Sep
K61: Oct
K62: Nov
K63: Dec
K64: Annual | L64: =AVERAGE(L52:L63) ->  | M64: =MAX(M52:M63) -> 0 | N64: =AVERAGE(N52:N63) ->  | O64: =MAX(O52:O63) -> 0
J66: =+A5 -> 2025 | K66: mg/Nm3 | L66: Monthly mean of half-hourly averages | M66: Highest half- hourly average | N66: Monthly mean of daily averages | O66: Highest daily average
J67: A5 | K67: Jan
K68: Feb
K69: Mar
K70: Apr
K71: May
K72: Jun
K73: Jul
K74: Aug
K75: Sep
K76: Oct
K77: Nov
K78: Dec
K79: Annual | L79: =AVERAGE(L67:L78) ->  | M79: =MAX(M67:M78) -> 0 | N79: =AVERAGE(N67:N78) ->  | O79: =MAX(O67:O78) -> 0

Sheet TOC
A1: =+'Cover Page'!$B$29 -> Annual Performance Report 2025 | E1: =+'Cover Page'!$B$33 -> Staffordshire Energy Recovery Facility
A3: Monitoring of Total organic carbon emissions | D3: Whole Installation | G3: See Notes in Cell Q3 | J3: =+A3 -> Monitoring of Total organic carbon emissions | N3: Per Combustion Line | Q3: Notes:
Q4: User to add logic to complete Whole installation, Table A5:G18. From the data in Per Combustion Line, Table J6:O79, subject to No. of lines installed
A5: =+'Cover Page'!C39 -> 2025 | B5: 1/2 Hourly Reference Periods | E5: Daily Reference Periods
A6: mg/Nm3 | B6: 1/2 hourly TOC ELV | C6: Monthly mean of half-hourly averages | D6: Highest half- hourly average | E6: Daily TOC ELV | F6: Monthly mean of daily averages | G6: Highest daily average | J6: =+A5 -> 2025 | K6: mg/Nm3 | L6: Monthly mean of half-hourly averages | M6: Highest half- hourly average | N6: Monthly mean of daily averages | O6: Highest daily average
A7: Jan | B7: 20 | C7: =IF(L7="","",AVERAGE(L7,L22)) -> 0.2 | D7: =IF(M7="","",AVERAGE(M7,M22)) -> 8.2 | E7: 10 | F7: =IF(N7="","",AVERAGE(N7,N22)) -> 0.15 | G7: =IF(O7="","",AVERAGE(O7,O22)) -> 0.35 | J7: A1 | K7: Jan | L7: 0.4 | M7: 12.7 | N7: 0.3 | O7: 0.6
A8: Feb | B8: 20 | C8: =IF(L8="","",AVERAGE(L8,L23)) -> 0.35 | D8: =IF(M8="","",AVERAGE(M8,M23)) -> 4.8 | E8: 10 | F8: =IF(N8="","",AVERAGE(N8,N23)) -> 0.3 | G8: =IF(O8="","",AVERAGE(O8,O23)) -> 1.05 | K8: Feb | L8: 0.5 | M8: 6.5 | N8: 0.4 | O8: 1
A9: Mar | B9: 20 | C9: 0.25 | D9: 5.1 | E9: 10 | F9: 0.2 | G9: 0.45 | K9: Mar | L9: 0.4 | M9: 4.7 | N9: 0.4 | O9: 0.6 | Q9: Whole Installation table A5:G18:
A10: Apr | B10: 20 | C10: 0.2 | D10: 3.7 | E10: 10 | F10: 0.2 | G10: 0.35 | K10: Apr | L10: 0.4 | M10: 5.6 | N10: 0.4 | O10: 0.5 | Q10: Mean: for 1/2 hourly and daily periods calculate mean of values across all operational combustion lines for the month
A11: May | B11: 20 | C11: 0.2 | D11: 3.7 | E11: 10 | F11: 0.15 | G11: 0.45 | K11: May | L11: 0.4 | M11: 6 | N11: 0.3 | O11: 0.7
A12: Jun | B12: 20 | C12: 0.2 | D12: 2.25 | E12: 10 | F12: 0.1 | G12: 0.3 | K12: Jun | L12: 0.4 | M12: 2.8 | N12: 0.3 | O12: 0.5
A13: Jul | B13: 20 | C13: 0.3 | D13: 9.45 | E13: 10 | F13: 0.2 | G13: 0.45 | K13: Jul | L13: 0.5 | M13: 12.3 | N13: 0.4 | O13: 0.7 | Q13: Maximum: for 1/2 hourly and daily periods use the highest value across all operational combustion lines for the month
A14: Aug | B14: 20 | C14: 0.3 | D14: 7.75 | E14: 10 | F14: 0.2 | G14: 0.6 | K14: Aug | L14: 0.5 | M14: 6.2 | N14: 0.4 | O14: 0.9
A15: Sep | B15: 20 | C15: 0.35 | D15: 9.6 | E15: 10 | F15: 0.3 | G15: 0.55 | K15: Sep | L15: 0.5 | M15: 5.3 | N15: 0.5 | O15: 0.7
A16: Oct | B16: 20 | C16: 0.25 | D16: 9.95 | E16: 10 | F16: 0.15 | G16: 0.55 | K16: Oct | L16: 0.4 | M16: 3.5 | N16: 0.3 | O16: 0.6
A17: Nov | B17: 20 | C17: 0.15 | D17: 0.95 | E17: 10 | F17: 0.1 | G17: 0.3 | K17: Nov | L17: 0.3 | M17: 1 | N17: 0.2 | O17: 0.5
A18: Dec | B18: 20 | C18: 0.2 | D18: 5.55 | E18: 10 | F18: 0.15 | G18: 0.45 | K18: Dec | L18: 0.4 | M18: 7.9 | N18: 0.3 | O18: 0.8
K19: Annual | L19: =AVERAGE(L7:L18) -> 0.425 | M19: =MAX(M7:M18) -> 12.7 | N19: =AVERAGE(N7:N18) -> 0.35 | O19: =MAX(O7:O18) -> 1
J21: =+A5 -> 2025 | K21: mg/Nm3 | L21: Monthly mean of half-hourly averages | M21: Highest half- hourly average | N21: Monthly mean of daily averages | O21: Highest daily average
J22: A2 | K22: Jan | L22: 0 | M22: 3.7 | N22: 0 | O22: 0.1
K23: Feb | L23: 0.2 | M23: 3.1 | N23: 0.2 | O23: 1.1
K24: Mar | L24: 0.1 | M24: 5.5 | N24: 0 | O24: 0.3
K25: Apr | L25: 0 | M25: 1.8 | N25: 0 | O25: 0.2
K26: May | L26: 0 | M26: 1.4 | N26: 0 | O26: 0.2
K27: Jun | L27: 0 | M27: 1.7 | N27: -0.1 | O27: 0.1
K28: Jul | L28: 0.1 | M28: 6.6 | N28: 0 | O28: 0.2
K29: Aug | L29: 0.1 | M29: 9.3 | N29: 0 | O29: 0.3
K30: Sep | L30: 0.2 | M30: 13.9 | N30: 0.1 | O30: 0.4
K31: Oct | L31: 0.1 | M31: 16.4 | N31: 0 | O31: 0.5
K32: Nov | L32: 0 | M32: 0.9 | N32: 0 | O32: 0.1
K33: Dec | L33: 0 | M33: 3.2 | N33: 0 | O33: 0.1
K34: Annual | L34: =AVERAGE(L22:L33) -> 0.06666666667 | M34: =MAX(M22:M33) -> 16.4 | N34: =AVERAGE(N22:N33) -> 0.01666666667 | O34: =MAX(O22:O33) -> 1.1
J36: =+A5 -> 2025 | K36: mg/Nm3 | L36: Monthly mean of half-hourly averages | M36: Highest half- hourly average | N36: Monthly mean of daily averages | O36: Highest daily average
J37: A3 | K37: Jan
K38: Feb
K39: Mar
K40: Apr
K41: May
K42: Jun
K43: Jul
K44: Aug
K45: Sep
K46: Oct
K47: Nov
A48: Comments : | K48: Dec
K49: Annual | L49: =AVERAGE(L37:L48) ->  | M49: =MAX(M37:M48) -> 0 | N49: =AVERAGE(N37:N48) ->  | O49: =MAX(O37:O48) -> 0
J51: =+A5 -> 2025 | K51: mg/Nm3 | L51: Monthly mean of half-hourly averages | M51: Highest half- hourly average | N51: Monthly mean of daily averages | O51: Highest daily average
J52: A4 | K52: Jan
K53: Feb
K54: Mar
K55: Apr
K56: May
K57: Jun
K58: Jul
K59: Aug
K60: Sep
K61: Oct
K62: Nov
K63: Dec
K64: Annual | L64: =AVERAGE(L52:L63) ->  | M64: =MAX(M52:M63) -> 0 | N64: =AVERAGE(N52:N63) ->  | O64: =MAX(O52:O63) -> 0
J66: =+A5 -> 2025 | K66: mg/Nm3 | L66: Monthly mean of half-hourly averages | M66: Highest half- hourly average | N66: Monthly mean of daily averages | O66: Highest daily average
J67: A5 | K67: Jan
K68: Feb
K69: Mar
K70: Apr
K71: May
K72: Jun
K73: Jul
K74: Aug
K75: Sep
K76: Oct
K77: Nov
K78: Dec
K79: Annual | L79: =AVERAGE(L67:L78) ->  | M79: =MAX(M67:M78) -> 0 | N79: =AVERAGE(N67:N78) ->  | O79: =MAX(O67:O78) -> 0

Sheet Particulates
A1: =+'Cover Page'!$B$29 -> Annual Performance Report 2025 | E1: =+'Cover Page'!$B$33 -> Staffordshire Energy Recovery Facility
A3: Monitoring of Particulate matter emissions | D3: Whole Installation | G3: See Notes in Cell Q3 | J3: =+A3 -> Monitoring of Particulate matter emissions | N3: Per Combustion Line | Q3: Notes:
A5: =+'Cover Page'!C39 -> 2025 | B5: 1/2 Hourly Reference Periods | E5: Daily Reference Periods | Q5: User to add logic to complete Whole installation, Table A5:G18. From the data in Per Combustion Line, Table J6:O79, subject to No. of lines installed
A6: mg/Nm3 | B6: 1/2 hourly PM ELV | C6: Monthly mean of half-hourly averages | D6: Highest half- hourly average | E6: Daily PM ELV | F6: Monthly mean of daily averages | G6: Highest daily average | J6: =+A5 -> 2025 | K6: mg/Nm3 | L6: Monthly mean of half-hourly averages | M6: Highest half- hourly average | N6: Monthly mean of daily averages | O6: Highest daily average
A7: Jan | B7: 30 | C7: =IF(L7="","",AVERAGE(L7,L22)) -> 0.4 | D7: =IF(M7="","",AVERAGE(M7,M22)) -> 1.65 | E7: 5 | F7: =IF(N7="","",AVERAGE(N7,N22)) -> 0.4 | G7: =IF(O7="","",AVERAGE(O7,O22)) -> 1.2 | J7: A1 | K7: Jan | L7: 0.4 | M7: 2.8 | N7: 0.4 | O7: 1.9
A8: Feb | B8: 30 | C8: =IF(L8="","",AVERAGE(L8,L23)) -> 0.35 | D8: =IF(M8="","",AVERAGE(M8,M23)) -> 0.55 | E8: 5 | F8: =IF(N8="","",AVERAGE(N8,N23)) -> 0.3 | G8: =IF(O8="","",AVERAGE(O8,O23)) -> 0.5 | K8: Feb | L8: 0.3 | M8: 0.4 | N8: 0.2 | O8: 0.4
A9: Mar | B9: 30 | C9: 0.35 | D9: 0.45 | E9: 5 | F9: 0.3 | G9: 0.35 | K9: Mar | L9: 0.3 | M9: 0.3 | N9: 0.2 | O9: 0.3
A10: Apr | B10: 30 | C10: 0.35 | D10: 0.7 | E10: 5 | F10: 0.3 | G10: 0.35 | K10: Apr | L10: 0.3 | M10: 0.3 | N10: 0.2 | O10: 0.3 | Q10: Whole Installation table A5:G18:
A11: May | B11: 30 | C11: 0.35 | D11: 0.75 | E11: 5 | F11: 0.3 | G11: 0.4 | K11: May | L11: 0.3 | M11: 0.4 | N11: 0.2 | O11: 0.3 | Q11: Mean: for 1/2 hourly and daily periods calculate mean of values across all operational combustion lines for the month
A12: Jun | B12: 30 | C12: 0.35 | D12: 0.75 | E12: 5 | F12: 0.3 | G12: 0.4 | K12: Jun | L12: 0.3 | M12: 0.5 | N12: 0.2 | O12: 0.3
A13: Jul | B13: 30 | C13: 0.25 | D13: 3.4 | E13: 5 | F13: 0.2 | G13: 0.45 | K13: Jul | L13: 0.1 | M13: 0.3 | N13: 0 | O13: 0.3
A14: Aug | B14: 30 | C14: 0.35 | D14: 0.7 | E14: 5 | F14: 0.3 | G14: 0.4 | K14: Aug | L14: 0.3 | M14: 0.3 | N14: 0.2 | O14: 0.3 | Q14: Maximum: for 1/2 hourly and daily periods use the highest value across all operational combustion lines for the month
A15: Sep | B15: 30 | C15: 0.35 | D15: 2.75 | E15: 5 | F15: 0.3 | G15: 0.4 | K15: Sep | L15: 0.3 | M15: 3.3 | N15: 0.2 | O15: 0.3
A16: Oct | B16: 30 | C16: 0.35 | D16: 0.7 | E16: 5 | F16: 0.3 | G16: 0.35 | K16: Oct | L16: 0.3 | M16: 0.3 | N16: 0.2 | O16: 0.3
A17: Nov | B17: 30 | C17: 0.35 | D17: 0.65 | E17: 5 | F17: 0.3 | G17: 0.4 | K17: Nov | L17: 0.3 | M17: 0.3 | N17: 0.2 | O17: 0.3
A18: Dec | B18: 30 | C18: 0.35 | D18: 0.7 | E18: 5 | F18: 0.3 | G18: 0.35 | K18: Dec | L18: 0.3 | M18: 0.4 | N18: 0.2 | O18: 0.3
K19: Annual | L19: =AVERAGE(L7:L18) -> 0.2916666667 | M19: =MAX(M7:M18) -> 3.3 | N19: =AVERAGE(N7:N18) -> 0.2 | O19: =MAX(O7:O18) -> 1.9
J21: =+A5 -> 2025 | K21: mg/Nm3 | L21: Monthly mean of half-hourly averages | M21: Highest half- hourly average | N21: Monthly mean of daily averages | O21: Highest daily average
J22: A2 | K22: Jan | L22: 0.4 | M22: 0.5 | N22: 0.4 | O22: 0.5
K23: Feb | L23: 0.4 | M23: 0.7 | N23: 0.4 | O23: 0.6
K24: Mar | L24: 0.4 | M24: 0.6 | N24: 0.4 | O24: 0.4
K25: Apr | L25: 0.4 | M25: 1.1 | N25: 0.4 | O25: 0.4
K26: May | L26: 0.4 | M26: 1.1 | N26: 0.4 | O26: 0.5
K27: Jun | L27: 0.4 | M27: 1 | N27: 0.4 | O27: 0.5
K28: Jul | L28: 0.4 | M28: 6.5 | N28: 0.4 | O28: 0.6
K29: Aug | L29: 0.4 | M29: 1.1 | N29: 0.4 | O29: 0.5
K30: Sep | L30: 0.4 | M30: 2.2 | N30: 0.4 | O30: 0.5
K31: Oct | L31: 0.4 | M31: 1.1 | N31: 0.4 | O31: 0.4
K32: Nov | L32: 0.4 | M32: 1 | N32: 0.4 | O32: 0.5
K33: Dec | L33: 0.4 | M33: 1 | N33: 0.4 | O33: 0.4
K34: Annual | L34: =AVERAGE(L22:L33) -> 0.4 | M34: =MAX(M22:M33) -> 6.5 | N34: =AVERAGE(N22:N33) -> 0.4 | O34: =MAX(O22:O33) -> 0.6
J36: =+A5 -> 2025 | K36: mg/Nm3 | L36: Monthly mean of half-hourly averages | M36: Highest half- hourly average | N36: Monthly mean of daily averages | O36: Highest daily average
J37: A3 | K37: Jan
K38: Feb
K39: Mar
K40: Apr
K41: May
K42: Jun
K43: Jul
K44: Aug
K45: Sep
K46: Oct
K47: Nov
A48: Comments : | K48: Dec
K49: Annual | L49: =AVERAGE(L37:L48) ->  | M49: =MAX(M37:M48) -> 0 | N49: =AVERAGE(N37:N48) ->  | O49: =MAX(O37:O48) -> 0
J51: =+A5 -> 2025 | K51: mg/Nm3 | L51: Monthly mean of half-hourly averages | M51: Highest half- hourly average | N51: Monthly mean of daily averages | O51: Highest daily average
J52: A4 | K52: Jan
K53: Feb
K54: Mar
K55: Apr
K56: May
K57: Jun
K58: Jul
K59: Aug
K60: Sep
K61: Oct
K62: Nov
K63: Dec
K64: Annual | L64: =AVERAGE(L52:L63) ->  | M64: =MAX(M52:M63) -> 0 | N64: =AVERAGE(N52:N63) ->  | O64: =MAX(O52:O63) -> 0
J66: =+A5 -> 2025 | K66: mg/Nm3 | L66: Monthly mean of half-hourly averages | M66: Highest half- hourly average | N66: Monthly mean of daily averages | O66: Highest daily average
J67: A5 | K67: Jan
K68: Feb
K69: Mar
K70: Apr
K71: May
K72: Jun
K73: Jul
K74: Aug
K75: Sep
K76: Oct
K77: Nov
K78: Dec
K79: Annual | L79: =AVERAGE(L67:L78) ->  | M79: =MAX(M67:M78) -> 0 | N79: =AVERAGE(N67:N78) ->  | O79: =MAX(O67:O78) -> 0

Sheet CO 0.5 hourly (hidden)
A1: =+'Cover Page'!$B$29 -> Annual Performance Report 2025 | E1: =+'Cover Page'!$B$33 -> Staffordshire Energy Recovery Facility
A3: Monitoring of Carbon Monoxide (half hourly) | D3: Whole Installation | G3: See Notes in Cell Q3 | J3: =+A3 -> Monitoring of Carbon Monoxide (half hourly) | N3: Per Combustion Line | Q3: Notes:
A5: Please complete this tab for your plant if you have 1/2 hourly CO ELVs; otherwise, leave it blank and complete the CO 95% 10 min tab
Q7: User to add logic to complete Whole installation, Table A5:G18. From the data in Per Combustion Line, Table J6:O79, subject to No. of lines installed
A8: =+'Cover Page'!C39 -> 2025 | B8: 1/2 Hourly Reference Periods | E8: Daily Reference Periods
A9: mg/Nm3 | B9: 1/2 hourly CO ELV | C9: Monthly mean of half-hourly averages | D9: Highest half- hourly average | E9: Daily CO ELV | F9: Monthly mean of daily averages | G9: Highest daily average | J9: =+A8 -> 2025 | K9: mg/Nm3 | L9: Monthly mean of half-hourly averages | M9: Highest half- hourly average | N9: Monthly mean of daily averages | O9: Highest daily average
A10: Jan | B10: 100 | E10: 50 | J10: A1 | K10: Jan
A11: Feb | B11: =+B10 -> 100 | E11: =+E10 -> 50 | K11: Feb
A12: Mar | B12: =+B11 -> 100 | E12: =+E11 -> 50 | K12: Mar | Q12: Whole Installation table A5:G18:
A13: Apr | B13: 100 | E13: 50 | K13: Apr | Q13: Mean: for 1/2 hourly and daily periods calculate mean of values across all operational combustion lines for the month
A14: May | B14: 100 | E14: 50 | K14: May
A15: Jun | B15: 100 | E15: 50 | K15: Jun
A16: Jul | B16: 100 | E16: 50 | K16: Jul | Q16: Maximum: for 1/2 hourly and daily periods use the highest value across all operational combustion lines for the month
A17: Aug | B17: 100 | E17: 50 | K17: Aug
A18: Sep | B18: 100 | E18: 50 | K18: Sep
A19: Oct | B19: 100 | E19: 50 | K19: Oct
A20: Nov | B20: 100 | E20: 50 | K20: Nov
A21: Dec | B21: 100 | E21: 50 | K21: Dec
K22: Annual | L22: =AVERAGE(L10:L21) ->  | M22: =MAX(M10:M21) -> 0 | N22: =AVERAGE(N10:N21) ->  | O22: =MAX(O10:O21) -> 0
J24: =+A8 -> 2025 | K24: mg/Nm3 | L24: Monthly mean of half-hourly averages | M24: Highest half- hourly average | N24: Monthly mean of daily averages | O24: Highest daily average
J25: A2 | K25: Jan
K26: Feb
K27: Mar
K28: Apr
K29: May
K30: Jun
K31: Jul
K32: Aug
K33: Sep
K34: Oct
K35: Nov
K36: Dec
K37: Annual | L37: =AVERAGE(L25:L36) ->  | M37: =MAX(M25:M36) -> 0 | N37: =AVERAGE(N25:N36) ->  | O37: =MAX(O25:O36) -> 0
J39: =+A8 -> 2025 | K39: mg/Nm3 | L39: Monthly mean of half-hourly averages | M39: Highest half- hourly average | N39: Monthly mean of daily averages | O39: Highest daily average
J40: A3 | K40: Jan
K41: Feb
K42: Mar
K43: Apr
K44: May
K45: Jun
K46: Jul
K47: Aug
K48: Sep
K49: Oct
K50: Nov
A51: Comments : | K51: Dec
K52: Annual | L52: =AVERAGE(L40:L51) ->  | M52: =MAX(M40:M51) -> 0 | N52: =AVERAGE(N40:N51) ->  | O52: =MAX(O40:O51) -> 0
J54: =+A8 -> 2025 | K54: mg/Nm3 | L54: Monthly mean of half-hourly averages | M54: Highest half- hourly average | N54: Monthly mean of daily averages | O54: Highest daily average
J55: A4 | K55: Jan
K56: Feb
K57: Mar
K58: Apr
K59: May
K60: Jun
K61: Jul
K62: Aug
K63: Sep
K64: Oct
K65: Nov
K66: Dec
K67: Annual | L67: =AVERAGE(L55:L66) ->  | M67: =MAX(M55:M66) -> 0 | N67: =AVERAGE(N55:N66) ->  | O67: =MAX(O55:O66) -> 0
J69: =+A8 -> 2025 | K69: mg/Nm3 | L69: Monthly mean of half-hourly averages | M69: Highest half- hourly average | N69: Monthly mean of daily averages | O69: Highest daily average
J70: A5 | K70: Jan
K71: Feb
K72: Mar
K73: Apr
K74: May
K75: Jun
K76: Jul
K77: Aug
K78: Sep
K79: Oct
K80: Nov
K81: Dec
K82: Annual | L82: =AVERAGE(L70:L81) ->  | M82: =MAX(M70:M81) -> 0 | N82: =AVERAGE(N70:N81) ->  | O82: =MAX(O70:O81) -> 0

Sheet CO 95% 10 min
A1: =+'Cover Page'!$B$29 -> Annual Performance Report 2025 | E1: =+'Cover Page'!$B$33 -> Staffordshire Energy Recovery Facility
A3: Monitoring of Carbon Monoxide (10-minute avg) | E3: Whole Installation | H3: See Notes in Cell S3 | J3: =+A3 -> Monitoring of Carbon Monoxide (10-minute avg) | O3: Per Combustion Line | Q3: Notes: | S3: Notes:
A5: Please complete this tab for your plant if you have 10-minute average CO ELVs; otherwise, leave it blank and complete the CO 0.5 hourly tab
S7: User to add logic to complete Whole installation, Table A5:H18. From the data in Per Combustion Line, Table K6:Q79, subject to No. of lines installed
A8: =+'Cover Page'!C39 -> 2025 | B8: 10-minute Reference Periods | F8: Daily Reference Periods
A9: mg/Nm3 | B9: 95%ile 10-min avg CO ELV | C9: Highest daily 95%ile 10-min average | D9: Monthly mean of 10-min averages | E9: Highest 10-min average | F9: Daily CO ELV | G9: Monthly mean of daily averages | H9: Highest daily average | K9: =+A8 -> 2025 | L9: mg/Nm3 | M9: Highest daily 95%ile 10-min average | N9: Monthly mean of 10-min averages | O9: Highest 10-min average | P9: Monthly mean of daily averages | Q9: Highest daily average
A10: Jan | B10: 150 | C10: =IF(M10="","",AVERAGE(M10,M25)) -> 8.1 | D10: =IF(N10="","",AVERAGE(N10,N25)) -> 2.65 | E10: =IF(O10="","",AVERAGE(O10,O25)) -> 300.1 | F10: 50 | G10: =IF(P10="","",AVERAGE(P10,P25)) -> 2.5 | H10: =IF(Q10="","",AVERAGE(Q10,Q25)) -> 5.15 | K10: A1 | L10: Jan | M10: 7.8 | N10: 2.1 | O10: 481 | P10: 2 | Q10: 4.9
A11: Feb | B11: =+B10 -> 150 | C11: =IF(M11="","",AVERAGE(M11,M26)) -> 6.1 | D11: =IF(N11="","",AVERAGE(N11,N26)) -> 2.7 | E11: =IF(O11="","",AVERAGE(O11,O26)) -> 171.3 | F11: =+F10 -> 50 | G11: =IF(P11="","",AVERAGE(P11,P26)) -> 2.55 | H11: =IF(Q11="","",AVERAGE(Q11,Q26)) -> 3.95 | L11: Feb | M11: 6.1 | N11: 1.9 | O11: 104.5 | P11: 1.7 | Q11: 2.5
A12: Mar | B12: =+B11 -> 150 | C12: 11.35 | D12: 2.1 | E12: 224.05 | F12: =+F11 -> 50 | G12: 2.1 | H12: 3.8 | L12: Mar | M12: 9.4 | N12: 1.6 | O12: 195.1 | P12: 1.6 | Q12: 2.9 | S12: Whole Installation table A5:H18:
A13: Apr | B13: 150 | C13: 5.8 | D13: 1.95 | E13: 359.1 | F13: 50 | G13: 1.85 | H13: 5.55 | L13: Apr | M13: 4.1 | N13: 1.7 | O13: 346.8 | P13: 1.6 | Q13: 5 | S13: Mean: for 10-min and daily periods use average of all operational combustion lines.
A14: May | B14: 150 | C14: 6.2 | D14: 2.15 | E14: 384.45 | F14: 50 | G14: 2.1 | H14: 6.35 | L14: May | M14: 5.1 | N14: 1.9 | O14: 352.8 | P14: 1.8 | Q14: 5.8
A15: Jun | B15: 150 | C15: 8.95 | D15: 2.45 | E15: 280.3 | F15: 50 | G15: 2.3 | H15: 5.35 | L15: Jun | M15: 14.7 | N15: 2.6 | O15: 259.5 | P15: 2.5 | Q15: 5.2
A16: Jul | B16: 150 | C16: 9.15 | D16: 2.7 | E16: 594.8 | F16: 50 | G16: 2.65 | H16: 10.2 | L16: Jul | M16: 6.3 | N16: 1.9 | O16: 343.3 | P16: 1.8 | Q16: 4.4 | S16: Maximum: for 10-min and daily periods use the highest of all operational combustion lines in any month.
A17: Aug | B17: 150 | C17: 9.05 | D17: 2.1 | E17: 708.3 | F17: 50 | G17: 2.05 | H17: 7 | L17: Aug | M17: 3.7 | N17: 1.3 | O17: 427.6 | P17: 1.2 | Q17: 4.3
A18: Sep | B18: 150 | C18: 16.95 | D18: 2.2 | E18: 731.15 | F18: 50 | G18: 2.2 | H18: 7.15 | L18: Sep | M18: 4.1 | N18: 2.1 | O18: 807.7 | P18: 2.1 | Q18: 7.8
A19: Oct | B19: 150 | C19: 37.85 | D19: 2.55 | E19: 676.15 | F19: 50 | G19: 2.55 | H19: 12.9 | L19: Oct | M19: 4.8 | N19: 1.5 | O19: 112.8 | P19: 1.5 | Q19: 3.3
A20: Nov | B20: 150 | C20: 7.65 | D20: 2.15 | E20: 208.4 | F20: 50 | G20: 2.15 | H20: 5.1 | L20: Nov | M20: 8 | N20: 2.1 | O20: 64.1 | P20: 2.1 | Q20: 4.5
A21: Dec | B21: 150 | C21: 6 | D21: 2.25 | E21: 192.45 | F21: 50 | G21: 2.15 | H21: 4.1 | L21: Dec | M21: 7.4 | N21: 2.4 | O21: 254.1 | P21: 2.3 | Q21: 4.8
L22: Annual | M22: =IF(M10="","",AVERAGE(M10:M21)) -> 6.791666667 | N22: =MAX(N10:N21) -> 2.6 | O22: =MAX(O10:O21) -> 807.7 | P22: =AVERAGE(P10:P21) -> 1.85 | Q22: =MAX(Q10:Q21) -> 7.8
K24: =+A8 -> 2025 | L24: mg/Nm3 | M24: Highest daily 95%ile 10-min average | N24: Monthly mean of 10-min averages | O24: Highest 10-min average | P24: Monthly mean of daily averages | Q24: Highest daily average
K25: A2 | L25: Jan | M25: 8.4 | N25: 3.2 | O25: 119.2 | P25: 3 | Q25: 5.4
L26: Feb | M26: 6.1 | N26: 3.5 | O26: 238.1 | P26: 3.4 | Q26: 5.4
L27: Mar | M27: 13.3 | N27: 2.6 | O27: 253 | P27: 2.6 | Q27: 4.7
L28: Apr | M28: 7.5 | N28: 2.2 | O28: 371.4 | P28: 2.1 | Q28: 6.1
L29: May | M29: 7.3 | N29: 2.4 | O29: 416.1 | P29: 2.4 | Q29: 6.9
L30: Jun | M30: 3.2 | N30: 2.3 | O30: 301.1 | P30: 2.1 | Q30: 5.5
L31: Jul | M31: 12 | N31: 3.5 | O31: 846.3 | P31: 3.5 | Q31: 16
L32: Aug | M32: 14.4 | N32: 2.9 | O32: 989 | P32: 2.9 | Q32: 9.7
L33: Sep | M33: 29.8 | N33: 2.3 | O33: 654.6 | P33: 2.3 | Q33: 6.5
L34: Oct | M34: 70.9 | N34: 3.6 | O34: 1239.5 | P34: 3.6 | Q34: 22.5
L35: Nov | M35: 7.3 | N35: 2.2 | O35: 352.7 | P35: 2.2 | Q35: 5.7
L36: Dec | M36: 4.6 | N36: 2.1 | O36: 130.8 | P36: 2 | Q36: 3.4
L37: Annual | M37: =AVERAGE(M25:M36) -> 15.4 | N37: =MAX(N25:N36) -> 3.6 | O37: =MAX(O25:O36) -> 1239.5 | P37: =AVERAGE(P25:P36) -> 2.675 | Q37: =MAX(Q25:Q36) -> 22.5
K39: =+A8 -> 2025 | L39: mg/Nm3 | M39: Highest daily 95%ile 10-min average | N39: Monthly mean of 10-min averages | O39: Highest 10-min average | P39: Monthly mean of daily averages | Q39: Highest daily average
K40: A3 | L40: Jan
L41: Feb
L42: Mar
L43: Apr
L44: May
L45: Jun
L46: Jul
L47: Aug
L48: Sep
L49: Oct
L50: Nov
A51: Comments : | L51: Dec
A52: Environment Agency explanatory note: The 10-minute average ELV is based on the “95th percentile”. In this case this means that 95% of the 10 minute averages in the relevant 24-hour period (i.e. 137) must be below 150 mg/Nm3, and 5% (i.e. 7) are allowed to be any value above 150 mg/Nm3. Whilst we expect operators to minimise CO emissions at all times, it is perfectly acceptable for the value of the maximum 10-minute average to be above 150 mg/Nm3, provided the 95th percentile ELV has been met for that period. | L52: Annual | M52: =AVERAGE(M40:M51) ->  | O52: =MAX(O40:O51) -> 0 | P52: =AVERAGE(P40:P51) ->  | Q52: =MAX(Q40:Q51) -> 0
K54: =+A8 -> 2025 | L54: mg/Nm3 | M54: Highest daily 95%ile 10-min average | N54: Monthly mean of 10-min averages | O54: Highest 10-min average | P54: Monthly mean of daily averages | Q54: Highest daily average
K55: A4 | L55: Jan
L56: Feb
L57: Mar
L58: Apr
L59: May
L60: Jun
L61: Jul
L62: Aug
L63: Sep
L64: Oct
L65: Nov
L66: Dec
L67: Annual | M67: =AVERAGE(M55:M66) ->  | O67: =MAX(O55:O66) -> 0 | P67: =AVERAGE(P55:P66) ->  | Q67: =MAX(Q55:Q66) -> 0
K69: =+A8 -> 2025 | L69: mg/Nm3 | M69: 95%ile 10-min avg maximum | N69: Monthly CO 10-min avg mean | O69: 10-min avg maximum | P69: Monthly daily mean | Q69: Monthly daily maximum
K70: A5 | L70: Jan
L71: Feb
L72: Mar
L73: Apr
L74: May
L75: Jun
L76: Jul
L77: Aug
L78: Sep
L79: Oct
L80: Nov
L81: Dec
L82: Annual | M82: =AVERAGE(M70:M81) ->  | O82: =MAX(O70:O81) -> 0 | P82: =AVERAGE(P70:P81) ->  | Q82: =MAX(Q70:Q81) -> 0

Sheet NH3
A1: =+'Cover Page'!$B$29 -> Annual Performance Report 2025 | E1: =+'Cover Page'!$B$33 -> Staffordshire Energy Recovery Facility
A3: Monitoring of Ammnonia emissions | D3: Whole Installation | G3: See Notes in Cell Q3 | J3: =+A3 -> Monitoring of Ammnonia emissions | N3: Per Combustion Line | Q3: Notes:
Q4: User to add logic to complete Whole installation, Table A5:G18. From the data in Per Combustion Line, Table J6:O79, subject to No. of lines installed
A5: =+'Cover Page'!C39 -> 2025 | B5: 1/2 Hourly Reference Periods | E5: Daily Reference Periods
A6: mg/Nm3 | B6: 1/2 hourly NH3 ELV | C6: Monthly mean of half-hourly averages | D6: Highest half- hourly average | E6: Daily NH3 ELV | F6: Monthly mean of daily averages | G6: Highest daily average | J6: =+A5 -> 2025 | K6: mg/Nm3 | L6: Monthly mean of half-hourly averages | M6: Highest half- hourly average | N6: Monthly mean of daily averages | O6: Highest daily average
A7: Jan | B7: None | C7: =IF(L7="","",AVERAGE(L7,L22)) -> 2.85 | D7: =IF(M7="","",AVERAGE(M7,M22)) -> 9.6 | E7: 15 | F7: =IF(N7="","",AVERAGE(N7,N22)) -> 2.8 | G7: =IF(O7="","",AVERAGE(O7,O22)) -> 5 | J7: A1 | K7: Jan | L7: 3.1 | M7: 10.7 | N7: 3 | O7: 6
A8: Feb | B8: =+B7 -> None | C8: =IF(L8="","",AVERAGE(L8,L23)) -> 2.8 | D8: =IF(M8="","",AVERAGE(M8,M23)) -> 8.8 | E8: 15 | F8: =IF(N8="","",AVERAGE(N8,N23)) -> 2.75 | G8: =IF(O8="","",AVERAGE(O8,O23)) -> 4.35 | K8: Feb | L8: 3.1 | M8: 7.9 | N8: 3 | O8: 4.8
A9: Mar | B9: =+B8 -> None | C9: 2.4 | D9: 8.9 | E9: 15 | F9: 2.35 | G9: 3.65 | K9: Mar | L9: 3.3 | M9: 12 | N9: 3.2 | O9: 5.2 | Q9: Whole Installation table A5:G18:
A10: Apr | B10: None | C10: 2.8 | D10: 9.9 | E10: 15 | F10: 2.75 | G10: 3.9 | K10: Apr | L10: 4 | M10: 13.5 | N10: 3.9 | O10: 5.6 | Q10: Mean: for 1/2 hourly and daily periods calculate mean of values across all operational combustion lines for the month
A11: May | B11: None | C11: 2.9 | D11: 11.35 | E11: 15 | F11: 2.9 | G11: 4.35 | K11: May | L11: 4 | M11: 17.9 | N11: 4 | O11: 6
A12: Jun | B12: None | C12: 3.9 | D12: 11.4 | E12: 15 | F12: 3.85 | G12: 5.35 | K12: Jun | L12: 5.5 | M12: 15.3 | N12: 5.4 | O12: 7.6
A13: Jul | B13: None | C13: 4.7 | D13: 10.8 | E13: 15 | F13: 4.65 | G13: 6.45 | K13: Jul | L13: 7.1 | M13: 16.4 | N13: 7 | O13: 10.1 | Q13: Maximum: for 1/2 hourly and daily periods use the highest value across all operational combustion lines for the month
A14: Aug | B14: None | C14: 3.85 | D14: 8.8 | E14: 15 | F14: 3.85 | G14: 5.55 | K14: Aug | L14: 5.2 | M14: 11.4 | N14: 5.2 | O14: 7.5
A15: Sep | B15: None | C15: 3.7 | D15: 13 | E15: 15 | F15: 3.65 | G15: 6.5 | K15: Sep | L15: 4.9 | M15: 19 | N15: 4.9 | O15: 9.1
A16: Oct | B16: None | C16: 3.55 | D16: 11.2 | E16: 15 | F16: 3.5 | G16: 5.75 | K16: Oct | L16: 5.1 | M16: 15.6 | N16: 5 | O16: 8.1
A17: Nov | B17: None | C17: 3.7 | D17: 13.65 | E17: 15 | F17: 3.65 | G17: 6.45 | K17: Nov | L17: 5.1 | M17: 16.2 | N17: 5 | O17: 9.2
A18: Dec | B18: None | C18: 3 | D18: 10.75 | E18: 15 | F18: 2.95 | G18: 5.2 | K18: Dec | L18: 4.1 | M18: 13.6 | N18: 4.1 | O18: 7.3
K19: Annual | L19: =AVERAGE(L7:L18) -> 4.541666667 | M19: =MAX(M7:M18) -> 19 | N19: =AVERAGE(N7:N18) -> 4.475 | O19: =MAX(O7:O18) -> 10.1
J21: =+A5 -> 2025 | K21: mg/Nm3 | L21: Monthly mean of half-hourly averages | M21: Highest half- hourly average | N21: Monthly mean of daily averages | O21: Highest daily average
J22: A2 | K22: Jan | L22: 2.6 | M22: 8.5 | N22: 2.6 | O22: 4
K23: Feb | L23: 2.5 | M23: 9.7 | N23: 2.5 | O23: 3.9
K24: Mar | L24: 1.5 | M24: 5.8 | N24: 1.5 | O24: 2.1
K25: Apr | L25: 1.6 | M25: 6.3 | N25: 1.6 | O25: 2.2
K26: May | L26: 1.8 | M26: 4.8 | N26: 1.8 | O26: 2.7
K27: Jun | L27: 2.3 | M27: 7.5 | N27: 2.3 | O27: 3.1
K28: Jul | L28: 2.3 | M28: 5.2 | N28: 2.3 | O28: 2.8
K29: Aug | L29: 2.5 | M29: 6.2 | N29: 2.5 | O29: 3.6
K30: Sep | L30: 2.5 | M30: 7 | N30: 2.4 | O30: 3.9
K31: Oct | L31: 2 | M31: 6.8 | N31: 2 | O31: 3.4
K32: Nov | L32: 2.3 | M32: 11.1 | N32: 2.3 | O32: 3.7
K33: Dec | L33: 1.9 | M33: 7.9 | N33: 1.8 | O33: 3.1
K34: Annual | L34: =AVERAGE(L22:L33) -> 2.15 | M34: =MAX(M22:M33) -> 11.1 | N34: =AVERAGE(N22:N33) -> 2.133333333 | O34: =MAX(O22:O33) -> 4
J36: =+A5 -> 2025 | K36: mg/Nm3 | L36: Monthly mean of half-hourly averages | M36: Highest half- hourly average | N36: Monthly mean of daily averages | O36: Highest daily average
J37: A3 | K37: Jan
K38: Feb
K39: Mar
K40: Apr
K41: May
K42: Jun
K43: Jul
K44: Aug
K45: Sep
K46: Oct
K47: Nov
A48: Comments : | K48: Dec
A49: An indicated ELV value of zero in the table above means that no ammonia limit is/was set in the permit. | K49: Annual | L49: =AVERAGE(L37:L48) ->  | M49: =MAX(M37:M48) -> 0 | N49: =AVERAGE(N37:N48) ->  | O49: =MAX(O37:O48) -> 0
J51: =+A5 -> 2025 | K51: mg/Nm3 | L51: Monthly mean of half-hourly averages | M51: Highest half- hourly average | N51: Monthly mean of daily averages | O51: Highest daily average
J52: A4 | K52: Jan
K53: Feb
K54: Mar
K55: Apr
K56: May
K57: Jun
K58: Jul
K59: Aug
K60: Sep
K61: Oct
K62: Nov
K63: Dec
K64: Annual | L64: =AVERAGE(L52:L63) ->  | M64: =MAX(M52:M63) -> 0 | N64: =AVERAGE(N52:N63) ->  | O64: =MAX(O52:O63) -> 0
J66: =+A5 -> 2025 | K66: mg/Nm3 | L66: Monthly mean of half-hourly averages | M66: Highest half- hourly average | N66: Monthly mean of daily averages | O66: Highest daily average
J67: A5 | K67: Jan
K68: Feb
K69: Mar
K70: Apr
K71: May
K72: Jun
K73: Jul
K74: Aug
K75: Sep
K76: Oct
K77: Nov
K78: Dec
K79: Annual | L79: =AVERAGE(L67:L78) ->  | M79: =MAX(M67:M78) -> 0 | N79: =AVERAGE(N67:N78) ->  | O79: =MAX(O67:O78) -> 0

Sheet Template changes log
A1: Log of changes to template (Environment Agency use only)
A3: Date | B3: Description of change | C3: New version number and date
A4: 2024-01-16 | B4: Air (periodic) tab: corrected default O2 reference from 6 to 11% | C4: Version 23.5a (for incinerators) - 16/01/2024
A5: 2024-09-23 | B5: Air (periodic) tab: corrected symbol for Thallium to Tl
A6: 2024-09-23 | B6: Air (periodic) tab: removed last year's references to different emission limit values applying from 03/12/23 and updated all relevant ELVs
A7: 2024-09-23 | B7: Tabs for continuously monitored pollutants (HCl, SO2 etc.): changed terminology in table headings to improve clarity
A8: 2024-09-23 | B8: Tabs for continuously monitored pollutants (HCl, SO2 etc.): removed last year's references to different emission limit values applying from 03/12/23 and updated all relevant ELVs
A9: 2024-09-23 | B9: Perf 1 tab: updated formula for water usage to report m3 rather than litres and corrected error with formula copying operator name
A10: 2024-09-23 | B10: Operational Summary tab: table added on start-ups and shut-downs
A11: 2024-09-23 | B11: Operational Summary tab: table added on dioxins and mercury protocols
A12: 2024-09-23 | B12: Operational Summary tab: table added on AST, QAL 2 and calibration functions
A13: 2024-09-23 | B13: CO2 N2O tab: various changes made to notes to reflect the fact that most plants should now have calibrated CEMS and flow meters + some have C14 samplers and more up to date industry data | C13: Version 24a (for incinerators) - 23/09/24
A14: 2024-11-08 | B14: CO2 N2O tab: Changed the N2O CO2 equivalence factor from 298 to 265 in line with recently updated government greenhouse gas figures: https://www.gov.uk/government/publications/greenhouse-gas-reporting-conversion-factors-2024
A15: 2024-11-08 | B15: CO2 N2O tab: Added an additional requirement for municipal EfW plants to state the yearly average biogenic percentage of the waste by mass, and reference to a document which sets out a methodology for calculating NCV of waste from the results of C14 sampling.
A16: 2024-11-08 | B16: Permit Compliance tab: Two additional columns added + explanatory notes to the table entitled "Summary of non-compliances under the permit" to allow CCS scores to be stated where relevant.
A17: 2024-11-08 | B17: Residue Quality tab: Note added explaining application of TOC and LOI limits and asking operators to report both metrics where measured. | C17: Version 24.1a (for incinerators) - 08/11/24
A18: 2024-11-27 | B18: Operational Summary tab: table added on start-ups and shut-downs | C18: Version 24.2a (for incinerators) - 27/11/24
A19: 2025-11-27 | B19: Cover Page: Print as PDF and Print Report and pdf buttons deleted and blank columns removed; contents page deleted | C19: Version 25.1a (for incinerators) - 27/11/25
A20: 2025-11-27 | B20: Residue Quality tab renamed to "Residues", and Summary of residue handling table moved from Operational Summary tab to Residues tab.
A21: 2025-11-27 | B21: Various changes made to the Operational Data tab including • Reformatting of the rows under the Operational data heading (Rows 3-8) to make it clearer what information is required. • Amendment of the rows under the Energy Usage / Export heading (Rows 26-32) to calculate an “indicative parasitic load” (now excluding energy imported) • Amendment of the unit for gas usage from cubic feet to cubic metres (Row 50) • Some amendments to the first 2 notes and other minor edits • Deleted "Overall Availability, mean avg. of all lines, hrs" row
A22: 2025-11-27 | B22: Operational Summary tab: Note added requiring all emergency shut-downs be listed, irrespective of whether or not they were reportable.
A23: 2025-11-27 | B23: CO2 N2O tab: Note added to ask operators to ensure that relevant data reported here matches that which will be submitted under the Pollution Inventory
